Workbook

Sheet Best interm. coolpack
A7: Best intermediat pressure for | D7: R744 | E7: at an evaporation temperature of | H7: -35 | I7: ˚C | J7: , and it is | K7: 0 | L7: ˚C
A9: Evaporator input | D9: 1. Compressor input | G9: 1. Compressor output | J9: 2. Compressor input | M9: 2. Compressor output
A10: Temperature | B10: -35 | C10: ˚C | D10: Temperature | E10: -33 | F10: ˚C | G10: Temperature | H10: 48.7 | I10: ˚C | J10: Temperature | K10: 33.7 | L10: ˚C | M10: Temperature | N10: 113.5 | O10: ˚C
A11: Pressure | B11: 12.07 | C11: bar | D11: Pressure | E11: =B11 -> 12.07 | F11: bar | G11: Pressure | I11: bar | J11: Pressure | L11: bar | M11: Pressure | N11: 85 | O11: bar
D12: Power | F12: kW | J12: Power | L12: kW
D13: Isentropic efficiency | E13: 80 | F13: % | J13: Isentropic efficiency | K13: =E13 -> 80 | L13: %
D14: Heat loss | E14: 5 | F14: %
D15: mR744 | E15: 0.0233 | F15: kg/s | M15: Gas cooler output
M16: Temperature | N16: 10 | O16: ˚C
M17: Pressure | O17: bar
A19: Intermediat temp | B19: -15 | C19: ˚C | D19: -10 | E19: ˚C | F19: -5 | G19: ˚C | H19: 0 | I19: ˚C | J19: 5 | K19: ˚C | L19: 10 | M19: ˚C | N19: 15 | O19: ˚C | P19: 20 | Q19: ˚C
A20: Comp | B20: 2.68 | C20: kW | D20: 2.71 | E20: kW | F20: 2.73 | G20: kW | H20: 2.73 | I20: kW | J20: 2.76 | K20: kW | L20: 2.78 | M20: kW | N20: 2.79 | O20: kW | P20: 2.79 | Q20: kW
A21: Gas cooler | B21: 7.28 | C21: kW | D21: 7.3 | E21: kW | F21: 7.32 | G21: kW | H21: 7.33 | I21: kW | J21: 7.34 | K21: kW | L21: 7.35 | M21: kW | N21: 7.35 | O21: kW | P21: 7.36 | Q21: kW
A22: COP | B22: =B21/(B20) -> 2.71641791 | D22: =D21/(D20) -> 2.693726937 | F22: =F21/(F20) -> 2.681318681 | H22: =H21/(H20) -> 2.684981685 | J22: =J21/(J20) -> 2.65942029 | L22: =L21/(L20) -> 2.643884892 | N22: =N21/(N20) -> 2.634408602 | P22: =P21/(P20) -> 2.637992832
A31: Best intermediat pressure for | D31: R717 | E31: at an evaporation temperature of | H31: -35 | I31: ˚C | J31: , and it is | L31: ˚C
A33: Evaporator input | D33: 1. Compressor input | G33: 1. Compressor output | J33: 2. Compressor input | M33: 2. Compressor output
A34: Temperature | B34: -35 | C34: ˚C | D34: Temperature | E34: -33 | F34: ˚C | G34: Temperature | H34: 159.3 | I34: ˚C | J34: Temperature | K34: 17 | L34: ˚C | M34: Temperature | N34: 59.6 | O34: ˚C
A35: Pressure | C35: bar | D35: Pressure | F35: bar | G35: Pressure | I35: bar | J35: Pressure | L35: bar | M35: Pressure | O35: bar
D36: Power | F36: kW | J36: Power | L36: kW
D37: Isentropic efficiency | E37: 70 | F37: % | J37: Isentropic efficiency | K37: =E37 -> 70 | L37: %
D38: Heat loss | E38: 5 | F38: % | M38: Condenser temperature
D39: mR717 total | E39: 0.005 | F39: kg/s | M39: Temperature | N39: 30 | O39: ˚C
M40: Output | N40: 10 | O40: ˚C
A42: Intermediat temp | B42: -15 | C42: ˚C | D42: -10 | E42: ˚C | F42: -5 | G42: ˚C | H42: 0 | I42: ˚C | J42: 5 | K42: ˚C | L42: 10 | M42: ˚C | N42: 15 | O42: ˚C | P42: 20 | Q42: ˚C
A43: Comp | B43: 2.6 | C43: kW | D43: 2.5 | E43: kW | F43: 2.4 | G43: kW | H43: 2.2 | I43: kW | J43: 2.1 | K43: kW | L43: 2 | M43: kW | N43: 1.8 | O43: kW | P43: 1.7 | Q43: kW
A44: Gas cooler | B44: 9.4 | C44: kW | D44: 9.4 | E44: kW | F44: 9.5 | G44: kW | H44: 9.5 | I44: kW | J44: 9.5 | K44: kW | L44: 9.6 | M44: kW | N44: 9.6 | O44: kW | P44: 9.6 | Q44: kW
A45: COP | B45: =B44/(B43) -> 3.615384615 | D45: =D44/(D43) -> 3.76 | F45: =F44/(F43) -> 3.958333333 | H45: =H44/(H43) -> 4.318181818 | J45: =J44/(J43) -> 4.523809524 | L45: =L44/(L43) -> 4.8 | N45: =N44/(N43) -> 5.333333333 | P45: =P44/(P43) -> 5.647058824
A55: Best intermediat pressure for | D55: R290 | E55: at an evaporation temperature of | H55: -35 | I55: ˚C | J55: , and it is | L55: ˚C
A57: Evaporator input | D57: 1. Compressor input | G57: 1. Compressor output | J57: 2. Compressor input | M57: 2. Compressor output
A58: Temperature | B58: -35 | C58: ˚C | D58: Temperature | F58: ˚C | G58: Temperature | I58: ˚C | J58: Temperature | L58: ˚C | M58: Temperature | O58: ˚C
A59: Pressure | C59: bar | D59: Pressure | F59: bar | G59: Pressure | I59: bar | J59: Pressure | L59: bar | M59: Pressure | O59: bar
D60: Power | F60: kW | J60: Power | L60: kW
D61: Isentropic efficiency | E61: 70 | F61: % | J61: Isentropic efficiency | K61: =E61 -> 70 | L61: %
D62: Heat loss | E62: 5 | F62: % | M62: Condenser temperature
D63: mR290 total | E63: 0.02 | F63: kg/s | M63: Temperature | N63: 30 | O63: ˚C
M64: Output | N64: 10 | O64: ˚C
A66: Intermediat temp | B66: -15 | C66: ˚C | D66: -10 | E66: ˚C | F66: -5 | G66: ˚C | H66: 0 | I66: ˚C | J66: 5 | K66: ˚C | L66: 10 | M66: ˚C | N66: 15 | O66: ˚C | P66: 20 | Q66: ˚C
A67: Comp | B67: 2.5 | C67: kW | D67: 2.4 | E67: kW | F67: 2.2 | G67: kW | H67: 2.1 | I67: kW | J67: 1.9 | K67: kW | L67: 1.8 | M67: kW | N67: 1.7 | O67: kW | P67: 1.6 | Q67: kW
A68: Gas cooler | B68: 9.6 | C68: kW | D68: 9.4 | E68: kW | F68: 9.2 | G68: kW | H68: 9 | I68: kW | J68: 8.8 | K68: kW | L68: 8.6 | M68: kW | N68: 8.4 | O68: kW | P68: 8.2 | Q68: kW
A69: COP | B69: =B68/(B67) -> 3.84 | D69: =D68/(D67) -> 3.916666667 | F69: =F68/(F67) -> 4.181818182 | H69: =H68/(H67) -> 4.285714286 | J69: =J68/(J67) -> 4.631578947 | L69: =L68/(L67) -> 4.777777778 | N69: =N68/(N67) -> 4.941176471 | P69: =P68/(P67) -> 5.125
R79: The same effect on bouth the compressors
A80: Best intermediat pressure for | D80: R410A | E80: at an evaporation temperature of | H80: -35 | I80: ˚C | J80: , and it is | L80: ˚C
A82: Evaporator input | D82: 1. Compressor input | G82: 1. Compressor output | J82: 2. Compressor input | M82: 2. Compressor output
A83: Temperature | B83: -35 | C83: ˚C | D83: Temperature | F83: ˚C | G83: Temperature | I83: ˚C | J83: Temperature | L83: ˚C | M83: Temperature | O83: ˚C
A84: Pressure | C84: bar | D84: Pressure | F84: bar | G84: Pressure | I84: bar | J84: Pressure | L84: bar | M84: Pressure | O84: bar
D85: Power | F85: kW | J85: Power | L85: kW
D86: Isentropic efficiency | E86: 70 | F86: % | J86: Isentropic efficiency | K86: =E86 -> 70 | L86: %
D87: Heat loss | E87: 5 | F87: % | M87: Condenser temperature
D88: mR410A total | E88: 0.029 | F88: kg/s | M88: Temperature | N88: 30 | O88: ˚C
M89: Output | N89: 10 | O89: ˚C
A91: Intermediat temp | B91: -15 | C91: ˚C | D91: -10 | E91: ˚C | F91: -5 | G91: ˚C | H91: 0 | I91: ˚C | J91: 5 | K91: ˚C | L91: 10 | M91: ˚C | N91: 15 | O91: ˚C | P91: 20 | Q91: ˚C
A92: Comp | B92: 2.2 | C92: kW | D92: 2.1 | E92: kW | F92: 1.9 | G92: kW | H92: 1.8 | I92: kW | J92: 1.7 | K92: kW | L92: 1.6 | M92: kW | N92: 1.5 | O92: kW | P92: 1.4 | Q92: kW
A93: Gas cooler | B93: 8.5 | C93: kW | D93: 8.2 | E93: kW | F93: 8 | G93: kW | H93: 7.8 | I93: kW | J93: 7.6 | K93: kW | L93: 7.5 | M93: kW | N93: 7.3 | O93: kW | P93: 7.1 | Q93: kW
A94: COP | B94: =B93/(B92) -> 3.863636364 | D94: =D93/(D92) -> 3.904761905 | F94: =F93/(F92) -> 4.210526316 | H94: =H93/(H92) -> 4.333333333 | J94: =J93/(J92) -> 4.470588235 | L94: =L93/(L92) -> 4.6875 | N94: =N93/(N92) -> 4.866666667 | P94: =P93/(P92) -> 5.071428571

Sheet Best inerm. log
A14: Best intermediat pressure for | D14: R717 | E14: at an evaporation temperature of | H14: -35 | I14: ˚C | J14: , and it is | L14: ˚C
A16: Evaporator input | D16: 1. Compressor input | G16: 1. Compressor output | J16: 2. Compressor input | M16: 2. Compressor output
A17: Temperature | B17: -35 | C17: ˚C | D17: Temperature | E17: -33 | F17: ˚C | G17: Temperature | I17: ˚C | J17: Temperature | L17: ˚C | M17: Temperature | O17: ˚C
A18: Pressure | C18: bar | D18: Pressure | F18: bar | G18: Pressure | I18: bar | J18: Pressure | L18: bar | M18: Pressure | O18: bar
D19: Power | F19: kW | J19: Power | L19: kW
D20: Isentropic efficiency | E20: 70 | F20: % | J20: Isentropic efficiency | K20: =E20 -> 70 | L20: %
D21: Heat loss | E21: 5 | F21: % | M21: Condenser temperature
D22: mR717 total | E22: 0.005 | F22: kg/s | M22: Temperature | N22: 28 | O22: ˚C
M23: Output | N23: 10 | O23: ˚C
A25: Intermediat temp | B25: -15 | C25: ˚C | D25: -10 | E25: ˚C | F25: -5 | G25: ˚C | H25: 0 | I25: ˚C | J25: 5 | K25: ˚C | L25: 10 | M25: ˚C | N25: 15 | O25: ˚C
A26: Comp | B26: 1.82 | D26: 1.71 | F26: 1.63 | H26: 1.54 | J26: 1.46 | L26: 1.41 | N26: 1.42
A27: Gas cooler | B27: 7.99 | D27: 8.03 | F27: 8.04 | H27: 8.04 | J27: 8.07 | L27: 8.12 | N27: 8.24
A28: COP | B28: =B27/B26 -> 4.39010989 | D28: =D27/D26 -> 4.695906433 | F28: =F27/F26 -> 4.932515337 | H28: =H27/H26 -> 5.220779221 | J28: =J27/J26 -> 5.52739726 | L28: =L27/L26 -> 5.758865248 | N28: =N27/N26 -> 5.802816901
A31: Refrigerant | B31: R717 | C31: Temp | D31: -15 | E31: ˚C | F31: Refrigerant | G31: R717 | H31: Temp | I31: -10 | J31: ˚C | K31: Refrigerant | L31: R717 | M31: Temp | N31: -5 | O31: ˚C | P31: Refrigerant | Q31: R717 | R31: Temp | S31: 0 | T31: ˚C | U31: Refrigerant | V31: R717 | W31: Temp | X31: 5 | Y31: ˚C | Z31: Refrigerant | AA31: R717 | AB31: Temp | AC31: 10 | AD31: ˚C | AE31: Refrigerant | AF31: R717 | AG31: Temp | AH31: 15 | AI31: ˚C
A32: xf | B32: hA | C32: 1419.5 | D32: kJ/kg | F32: xf | G32: hA | H32: 1419.5 | I32: kJ/kg | K32: xf | L32: hA | M32: 1419.5 | N32: kJ/kg | P32: xf | Q32: hA | R32: 1419.5 | S32: kJ/kg | U32: xf | V32: hA | W32: 1419.5 | X32: kJ/kg | Z32: xf | AA32: hA | AB32: 1419.5 | AC32: kJ/kg | AE32: xf | AF32: hA | AG32: 1419.5 | AH32: kJ/kg
A33: (hC-hF)/(hC-hG) | B33: hB | C33: 1589.35 | D33: kJ/kg | F33: (hC-hF)/(hC-hG) | G33: hB | H33: 1632.5 | I33: kJ/kg | K33: (hC-hF)/(hC-hG) | L33: hB | M33: 1675 | N33: kJ/kg | P33: (hC-hF)/(hC-hG) | Q33: hB | R33: 1719.3 | S33: kJ/kg | U33: (hC-hF)/(hC-hG) | V33: hB | W33: 1762 | X33: kJ/kg | Z33: (hC-hF)/(hC-hG) | AA33: hB | AB33: 1806 | AC33: kJ/kg | AE33: (hC-hF)/(hC-hG) | AF33: hB | AG33: 1849 | AH33: kJ/kg
A34: =(C34-C37)/(C34-C38) -> 0.919874477 | B34: hC | C34: 1565 | D34: kJ/kg | F34: =(H34-H37)/(H34-H38) -> 0.9377823409 | G34: hC | H34: 1616 | I34: kJ/kg | K34: =(M34-M37)/(M34-M38) -> 0.9533829499 | L34: hC | M34: 1655 | N34: kJ/kg | P34: =(R34-R37)/(R34-R38) -> 0.9693181818 | Q34: hC | R34: 1696 | S34: kJ/kg | U34: =(W34-W37)/(W34-W38) -> 0.9848944591 | V34: hC | W34: 1739 | X34: kJ/kg | Z34: =(AB34-AB37)/(AB34-AB38) -> 0.9994140625 | AA34: hC | AB34: 1781 | AC34: kJ/kg | AE34: =(AG34-AG37)/(AG34-AG38) -> 0.9994303797 | AF34: hC | AG34: 1825 | AH34: kJ/kg
B35: hD | C35: 1843 | D35: kJ/kg | G35: hD | H35: 1851 | I35: kJ/kg | L35: hD | M35: 1853 | N35: kJ/kg | Q35: hD | R35: 1854 | S35: kJ/kg | V35: hD | W35: 1860 | X35: kJ/kg | AA35: hD | AB35: 1870 | AC35: kJ/kg | AF35: hD | AG35: 1894 | AH35: kJ/kg
A36: COP two stage | B36: hE | C36: 245.9 | D36: kJ/kg | F36: COP two stage | G36: hE | H36: 245.9 | I36: kJ/kg | K36: COP two stage | L36: hE | M36: 245.9 | N36: kJ/kg | P36: COP two stage | Q36: hE | R36: 245.9 | S36: kJ/kg | U36: COP two stage | V36: hE | W36: 245.9 | X36: kJ/kg | Z36: COP two stage | AA36: hE | AB36: 245.9 | AC36: kJ/kg | AE36: COP two stage | AF36: hE | AG36: 245.9 | AH36: kJ/kg
A37: (hD-hE)/(xf(hB-hA)+(hD-hC) | B37: hF | C37: =C36 -> 245.9 | D37: kJ/kg | F37: (hD-hE)/(xf(hB-hA)+(hD-hC) | G37: hF | H37: =H36 -> 245.9 | I37: kJ/kg | K37: (hD-hE)/(xf(hB-hA)+(hD-hC) | L37: hF | M37: =M36 -> 245.9 | N37: kJ/kg | P37: (hD-hE)/(xf(hB-hA)+(hD-hC) | Q37: hF | R37: =R36 -> 245.9 | S37: kJ/kg | U37: (hD-hE)/(xf(hB-hA)+(hD-hC) | V37: hF | W37: =W36 -> 245.9 | X37: kJ/kg | Z37: (hD-hE)/(xf(hB-hA)+(hD-hC) | AA37: hF | AB37: =AB36 -> 245.9 | AC37: kJ/kg | AE37: (hD-hE)/(xf(hB-hA)+(hD-hC) | AF37: hF | AG37: =AG36 -> 245.9 | AH37: kJ/kg
A38: =(C35-C36)/(A34*(C33-C32)+(C35-C34)) -> 3.677914285 | B38: hG | C38: 131 | D38: kJ/kg | F38: =(H35-H36)/(F34*(H33-H32)+(H35-H34)) -> 3.692026954 | G38: hG | H38: 155 | I38: kJ/kg | K38: =(M35-M36)/(K34*(M33-M32)+(M35-M34)) -> 3.639354126 | L38: hG | M38: 177 | N38: kJ/kg | P38: =(R35-R36)/(P34*(R33-R32)+(R35-R34)) -> 3.584695268 | Q38: hG | R38: 200 | S38: kJ/kg | U38: =(W35-W36)/(U34*(W33-W32)+(W35-W34)) -> 3.521726368 | V38: hG | W38: 223 | X38: kJ/kg | Z38: =(AB35-AB36)/(Z34*(AB33-AB32)+(AB35-AB34)) -> 3.41719006 | AA38: hG | AB38: 245 | AC38: kJ/kg | AE38: =(AG35-AG36)/(AE34*(AG33-AG32)+(AG35-AG34)) -> 3.307741716 | AF38: hG | AG38: 245 | AH38: kJ/kg
B39: hH | C39: =C38 -> 131 | D39: kJ/kg | G39: hH | H39: =H38 -> 155 | I39: kJ/kg | L39: hH | M39: =M38 -> 177 | N39: kJ/kg | Q39: hH | R39: =R38 -> 200 | S39: kJ/kg | V39: hH | W39: =W38 -> 223 | X39: kJ/kg | AA39: hH | AB39: =AB38 -> 245 | AC39: kJ/kg | AF39: hH | AG39: =AG38 -> 245 | AH39: kJ/kg
B41: mR717 | C41: 0.005 | D41: kg/s | G41: mR717 | H41: 0.005 | I41: kg/s | L41: mR717 | M41: 0.005 | N41: kg/s | Q41: mR717 | R41: 0.005 | S41: kg/s | V41: mR717 | W41: 0.005 | X41: kg/s | AA41: mR717 | AB41: 0.005 | AC41: kg/s | AF41: mR717 | AG41: 0.005 | AH41: kg/s
C43: Effect of comp | H43: Effect of comp | M43: Effect of comp | R43: Effect of comp | W43: Effect of comp | AB43: Effect of comp | AG43: Effect of comp
B44: 1. | C44: =(C41/2)*(C33-C32) -> 0.424625 | D44: kW | G44: 1. | H44: =(H41/2)*(H33-H32) -> 0.5325 | I44: kW | L44: 1. | M44: =(M41/2)*(M33-M32) -> 0.63875 | N44: kW | Q44: 1. | R44: =(R41/2)*(R33-R32) -> 0.7495 | S44: kW | V44: 1. | W44: =(W41/2)*(W33-W32) -> 0.85625 | X44: kW | AA44: 1. | AB44: =(AB41/2)*(AB33-AB32) -> 0.96625 | AC44: kW | AF44: 1. | AG44: =(AG41/2)*(AG33-AG32) -> 1.07375 | AH44: kW
B45: 2. | C45: =C41*(C35-C34) -> 1.39 | D45: kW | G45: 2. | H45: =H41*(H35-H34) -> 1.175 | I45: kW | L45: 2. | M45: =M41*(M35-M34) -> 0.99 | N45: kW | Q45: 2. | R45: =R41*(R35-R34) -> 0.79 | S45: kW | V45: 2. | W45: =W41*(W35-W34) -> 0.605 | X45: kW | AA45: 2. | AB45: =AB41*(AB35-AB34) -> 0.445 | AC45: kW | AF45: 2. | AG45: =AG41*(AG35-AG34) -> 0.345 | AH45: kW
B46: Tot | C46: =SUM(C44:C45) -> 1.814625 | D46: kW | G46: Tot | H46: =SUM(H44:H45) -> 1.7075 | I46: kW | L46: Tot | M46: =SUM(M44:M45) -> 1.62875 | N46: kW | Q46: Tot | R46: =SUM(R44:R45) -> 1.5395 | S46: kW | V46: Tot | W46: =SUM(W44:W45) -> 1.46125 | X46: kW | AA46: Tot | AB46: =SUM(AB44:AB45) -> 1.41125 | AC46: kW | AF46: Tot | AG46: =SUM(AG44:AG45) -> 1.41875 | AH46: kW
C48: Effect of gas cooler | H48: Effect of gas cooler | M48: Effect of gas cooler | R48: Effect of gas cooler | W48: Effect of gas cooler | AB48: Effect of gas cooler | AG48: Effect of gas cooler
C49: =C41*(C35-C36) -> 7.9855 | D49: kW | H49: =H41*(H35-H36) -> 8.0255 | I49: kW | M49: =M41*(M35-M36) -> 8.0355 | N49: kW | R49: =R41*(R35-R36) -> 8.0405 | S49: kW | W49: =W41*(W35-W36) -> 8.0705 | X49: kW | AB49: =AB41*(AB35-AB36) -> 8.1205 | AC49: kW | AG49: =AG41*(AG35-AG36) -> 8.2405 | AH49: kW
C51: COP-comp effect | H51: COP-comp effect | M51: COP-comp effect | R51: COP-comp effect | W51: COP-comp effect | AB51: COP-comp effect | AG51: COP-comp effect
C52: =C49/C46 -> 4.40063374 | H52: =H49/H46 -> 4.700146413 | M52: =M49/M46 -> 4.933537989 | R52: =R49/R46 -> 5.22279961 | W52: =W49/W46 -> 5.523011121 | AB52: =AB49/AB46 -> 5.754118689 | AG52: =AG49/AG46 -> 5.808281938
A62: Best intermediat pressure for | D62: R290 | E62: at an evaporation temperature of | H62: -35 | I62: ˚C | J62: , and it is | L62: ˚C
A64: Evaporator input | D64: 1. Compressor input | G64: 1. Compressor output | J64: 2. Compressor input | M64: 2. Compressor output
A65: Temperature | B65: -35 | C65: ˚C | D65: Temperature | E65: -33 | F65: ˚C | G65: Temperature | I65: ˚C | J65: Temperature | L65: ˚C | M65: Temperature | O65: ˚C
A66: Pressure | C66: bar | D66: Pressure | F66: bar | G66: Pressure | I66: bar | J66: Pressure | L66: bar | M66: Pressure | O66: bar
D67: Power | F67: kW | J67: Power | L67: kW
D68: Isentropic efficiency | E68: 70 | F68: % | J68: Isentropic efficiency | K68: =E68 -> 70 | L68: %
D69: Heat loss | E69: 5 | F69: % | M69: Condenser temperature
D70: mR290 total | E70: 0.02 | F70: kg/s | M70: Temperature | N70: 28 | O70: ˚C
M71: Output | N71: 10 | O71: ˚C
A73: Intermediat temp | B73: -15 | C73: ˚C | D73: -10 | E73: ˚C | F73: -5 | G73: ˚C | H73: 0 | I73: ˚C | J73: 5 | K73: ˚C | L73: 10 | M73: ˚C | N73: 15 | O73: ˚C
A74: Comp | B74: 2.5 | D74: 2.51 | F74: 2.48 | H74: 2.51 | J74: 2.56 | L74: 2.62 | N74: 2.79
A75: Condenser | B75: 8.5 | D75: 8.54 | F75: 8.48 | H75: 8.48 | J75: 8.48 | L75: 8.544 | N75: 8.54
A76: COP | B76: =B75/B74 -> 3.4 | D76: =D75/D74 -> 3.402390438 | F76: =F75/F74 -> 3.419354839 | H76: =H75/H74 -> 3.378486056 | J76: =J75/J74 -> 3.3125 | L76: =L75/L74 -> 3.261068702 | N76: =N75/N74 -> 3.0609319
A79: Refrigerant | B79: R290 | C79: Temp | D79: -15 | E79: ˚C | H79: Temp | I79: -10 | J79: ˚C | K79: Refrigerant | M79: Temp | N79: -5 | O79: ˚C | P79: Refrigerant | R79: Temp | S79: 0 | T79: ˚C | U79: Refrigerant | W79: Temp | X79: 5 | Y79: ˚C | Z79: Refrigerant | AB79: Temp | AC79: 10 | AD79: ˚C | AE79: Refrigerant | AG79: Temp | AH79: 15 | AI79: ˚C
A80: xf | B80: hA | C80: 537.1 | D80: kJ/kg | F80: xf | G80: hA | H80: 537.1 | I80: kJ/kg | K80: xf | L80: hA | M80: 537.1 | N80: kJ/kg | P80: xf | Q80: hA | R80: 537.1 | S80: kJ/kg | U80: xf | V80: hA | W80: 537.1 | X80: kJ/kg | Z80: xf | AA80: hA | AB80: 537.1 | AC80: kJ/kg | AE80: xf | AF80: hA | AG80: 537.1 | AH80: kJ/kg
A81: (hC-hF)/(hC-hG) | B81: hB | C81: 585.5 | D81: kJ/kg | F81: (hC-hF)/(hC-hG) | G81: hB | H81: 596.8 | I81: kJ/kg | K81: (hC-hF)/(hC-hG) | L81: hB | M81: 607.8 | N81: kJ/kg | P81: (hC-hF)/(hC-hG) | Q81: hB | R81: 618.6 | S81: kJ/kg | U81: (hC-hF)/(hC-hG) | V81: hB | W81: 629 | X81: kJ/kg | Z81: (hC-hF)/(hC-hG) | AA81: hB | AB81: 639.1 | AC81: kJ/kg | AE81: (hC-hF)/(hC-hG) | AF81: hB | AG81: 649 | AH81: kJ/kg
A82: =(C82-C85)/(C82-C86) -> 0.8487562189 | B82: hC | C82: 566 | D82: kJ/kg | F82: =(H82-H85)/(H82-H86) -> 0.8767326733 | G82: hC | H82: 579 | I82: kJ/kg | K82: =(M82-M85)/(M82-M86) -> 0.9059701493 | L82: hC | M82: 589 | N82: kJ/kg | P82: =(R82-R85)/(R82-R86) -> 0.938 | Q82: hC | R82: 600 | S82: kJ/kg | U82: =(W82-W85)/(W82-W86) -> 0.967839196 | V82: hC | W82: 610 | X82: kJ/kg | Z82: =(AB82-AB85)/(AB82-AB86) -> 1 | AA82: hC | AB82: 623 | AC82: kJ/kg | AE82: =(AG82-AG85)/(AG82-AG86) -> 1.031202046 | AF82: hC | AG82: 628 | AH82: kJ/kg
B83: hD | C83: 650 | D83: kJ/kg | G83: hD | H83: 652 | I83: kJ/kg | L83: hD | M83: 649 | N83: kJ/kg | Q83: hD | R83: 649 | S83: kJ/kg | V83: hD | W83: 649 | X83: kJ/kg | AA83: hD | AB83: 652 | AC83: kJ/kg | AF83: hD | AG83: 652 | AH83: kJ/kg
A84: COP two stage | B84: hE | C84: 224.8 | D84: kJ/kg | F84: COP two stage | G84: hE | H84: 224.8 | I84: kJ/kg | K84: COP two stage | L84: hE | M84: 224.8 | N84: kJ/kg | P84: COP two stage | Q84: hE | R84: 224.8 | S84: kJ/kg | U84: COP two stage | V84: hE | W84: 224.8 | X84: kJ/kg | Z84: COP two stage | AA84: hE | AB84: 224.8 | AC84: kJ/kg | AE84: COP two stage | AF84: hE | AG84: 224.8 | AH84: kJ/kg
A85: (hD-hE)/(xf(hB-hA)+(hD-hC) | B85: hF | C85: =C84 -> 224.8 | D85: kJ/kg | F85: (hD-hE)/(xf(hB-hA)+(hD-hC) | G85: hF | H85: =H84 -> 224.8 | I85: kJ/kg | K85: (hD-hE)/(xf(hB-hA)+(hD-hC) | L85: hF | M85: =M84 -> 224.8 | N85: kJ/kg | P85: (hD-hE)/(xf(hB-hA)+(hD-hC) | Q85: hF | R85: =R84 -> 224.8 | S85: kJ/kg | U85: (hD-hE)/(xf(hB-hA)+(hD-hC) | V85: hF | W85: =W84 -> 224.8 | X85: kJ/kg | Z85: (hD-hE)/(xf(hB-hA)+(hD-hC) | AA85: hF | AB85: =AB84 -> 224.8 | AC85: kJ/kg | AE85: (hD-hE)/(xf(hB-hA)+(hD-hC) | AF85: hF | AG85: =AG84 -> 224.8 | AH85: kJ/kg
A86: =(C83-C84)/(A82*(C81-C80)+(C83-C82)) -> 3.399429777 | B86: hG | C86: 164 | D86: kJ/kg | F86: =(H83-H84)/(F82*(H81-H80)+(H83-H82)) -> 3.408303767 | G86: hG | H86: 175 | I86: kJ/kg | K86: =(M83-M84)/(K82*(M81-M80)+(M83-M82)) -> 3.419531275 | L86: hG | M86: 187 | N86: kJ/kg | P86: =(R83-R84)/(P82*(R81-R80)+(R83-R82)) -> 3.381507728 | Q86: hG | R86: 200 | S86: kJ/kg | U86: =(W83-W84)/(U82*(W81-W80)+(W83-W82)) -> 3.315502099 | V86: hG | W86: 212 | X86: kJ/kg | Z86: =(AB83-AB84)/(Z82*(AB81-AB80)+(AB83-AB82)) -> 3.261068702 | AA86: hG | AB86: =AB85 -> 224.8 | AC86: kJ/kg | AE86: =(AG83-AG84)/(AE82*(AG81-AG80)+(AG83-AG82)) -> 3.064749088 | AF86: hG | AG86: 237 | AH86: kJ/kg
B87: hH | C87: =C86 -> 164 | D87: kJ/kg | G87: hH | H87: =H86 -> 175 | I87: kJ/kg | L87: hH | M87: =M86 -> 187 | N87: kJ/kg | Q87: hH | R87: =R86 -> 200 | S87: kJ/kg | V87: hH | W87: =W86 -> 212 | X87: kJ/kg | AA87: hH | AB87: 224.8 | AC87: kJ/kg | AF87: hH | AG87: =AG86 -> 237 | AH87: kJ/kg
B89: mR290 | C89: 0.02 | D89: kg/s | G89: mR290 | H89: 0.02 | I89: kg/s | L89: mR290 | M89: 0.02 | N89: kg/s | Q89: mR290 | R89: 0.02 | S89: kg/s | V89: mR290 | W89: 0.02 | X89: kg/s | AA89: mR290 | AB89: 0.02 | AC89: kg/s | AF89: mR290 | AG89: 0.02 | AH89: kg/s
C91: Effect of comp | H91: Effect of comp | M91: Effect of comp | R91: Effect of comp | W91: Effect of comp | AB91: Effect of comp | AG91: Effect of comp
B92: 1. | C92: =(C89*A82)*(C81-C80) -> 0.8215960199 | D92: kW | G92: 1. | H92: =(H89*F82)*(H81-H80) -> 1.046818812 | I92: kW | L92: 1. | M92: =(M89*K82)*(M81-M80) -> 1.281041791 | N92: kW | Q92: 1. | R92: =(R89*P82)*(R81-R80) -> 1.52894 | S92: kW | V92: 1. | W92: =(W89*U82)*(W81-W80) -> 1.778888442 | X92: kW | AA92: 1. | AB92: =(AB89*Z82)*(AB81-AB80) -> 2.04 | AC92: kW | AF92: 1. | AG92: =(AG89*AE82)*(AG81-AG80) -> 2.307830179 | AH92: kW
B93: 2. | C93: =C89*(C83-C82) -> 1.68 | D93: kW | G93: 2. | H93: =H89*(H83-H82) -> 1.46 | I93: kW | L93: 2. | M93: =M89*(M83-M82) -> 1.2 | N93: kW | Q93: 2. | R93: =R89*(R83-R82) -> 0.98 | S93: kW | V93: 2. | W93: =W89*(W83-W82) -> 0.78 | X93: kW | AA93: 2. | AB93: =AB89*(AB83-AB82) -> 0.58 | AC93: kW | AF93: 2. | AG93: =AG89*(AG83-AG82) -> 0.48 | AH93: kW
B94: Tot | C94: =SUM(C92:C93) -> 2.50159602 | D94: kW | G94: Tot | H94: =SUM(H92:H93) -> 2.506818812 | I94: kW | L94: Tot | M94: =SUM(M92:M93) -> 2.481041791 | N94: kW | Q94: Tot | R94: =SUM(R92:R93) -> 2.50894 | S94: kW | V94: Tot | W94: =SUM(W92:W93) -> 2.558888442 | X94: kW | AA94: Tot | AB94: =SUM(AB92:AB93) -> 2.62 | AC94: kW | AF94: Tot | AG94: =SUM(AG92:AG93) -> 2.787830179 | AH94: kW
C96: Effect of gas cooler | H96: Effect of gas cooler | M96: Effect of gas cooler | R96: Effect of gas cooler | W96: Effect of gas cooler | AB96: Effect of gas cooler | AG96: Effect of gas cooler
C97: =C89*(C83-C84) -> 8.504 | D97: kW | H97: =H89*(H83-H84) -> 8.544 | I97: kW | M97: =M89*(M83-M84) -> 8.484 | N97: kW | R97: =R89*(R83-R84) -> 8.484 | S97: kW | W97: =W89*(W83-W84) -> 8.484 | X97: kW | AB97: =AB89*(AB83-AB84) -> 8.544 | AC97: kW | AG97: =AG89*(AG83-AG84) -> 8.544 | AH97: kW
C99: COP-comp effect | H99: COP-comp effect | M99: COP-comp effect | R99: COP-comp effect | W99: COP-comp effect | AB99: COP-comp effect | AG99: COP-comp effect
C100: =C97/C94 -> 3.399429777 | H100: =H97/H94 -> 3.408303767 | M100: =M97/M94 -> 3.419531275 | R100: =R97/R94 -> 3.381507728 | W100: =W97/W94 -> 3.315502099 | AB100: =AB97/AB94 -> 3.261068702 | AG100: =AG97/AG94 -> 3.064749088
A110: Best intermediat pressure for | D110: R410A | E110: at an evaporation temperature of | H110: -35 | I110: ˚C | J110: , and it is | L110: ˚C
A112: Evaporator input | D112: 1. Compressor input | G112: 1. Compressor output | J112: 2. Compressor input | M112: 2. Compressor output
A113: Temperature | B113: -35 | C113: ˚C | D113: Temperature | E113: -33 | F113: ˚C | G113: Temperature | I113: ˚C | J113: Temperature | L113: ˚C | M113: Temperature | O113: ˚C
A114: Pressure | C114: bar | D114: Pressure | F114: bar | G114: Pressure | I114: bar | J114: Pressure | L114: bar | M114: Pressure | O114: bar
D115: Power | F115: kW | J115: Power | L115: kW
D116: Isentropic efficiency | E116: 70 | F116: % | J116: Isentropic efficiency | K116: =E116 -> 70 | L116: %
D117: Heat loss | E117: 5 | F117: % | M117: Condenser temperature
D118: mR410A total | E118: 0.03 | F118: kg/s | M118: Temperature | N118: 28 | O118: ˚C
M119: Output | N119: 10 | O119: ˚C
A121: Intermediat temp | B121: -15 | C121: ˚C | D121: -10 | E121: ˚C | F121: -5 | G121: ˚C | H121: 0 | I121: ˚C | J121: 5 | K121: ˚C | L121: 10 | M121: ˚C | N121: 15 | O121: ˚C
A122: Comp | B122: 2.22 | C122: kW | D122: 2.3 | E122: kW | F122: 2.53 | G122: kW | H122: 2.49 | I122: kW | J122: 2.44 | K122: kW | L122: 2.51 | M122: kW | N122: 2.54 | O122: kW
A123: Condenser | B123: 7.92 | C123: kW | D123: 7.49 | E123: kW | F123: 8.22 | G123: kW | H123: 8.1 | I123: kW | J123: 8.04 | K123: kW | L123: 8.01 | M123: kW | N123: 7.98 | O123: kW
A124: COP | B124: =B123/B122 -> 3.567567568 | D124: =D123/D122 -> 3.256521739 | F124: =F123/F122 -> 3.249011858 | H124: =H123/H122 -> 3.253012048 | J124: =J123/J122 -> 3.295081967 | L124: =L123/L122 -> 3.19123506 | N124: =N123/N122 -> 3.141732283
A127: Refrigerant | B127: R410A | C127: Temp | D127: -15 | E127: ˚C | F127: Refrigerant | H127: Temp | I127: -10 | J127: ˚C | K127: Refrigerant | M127: Temp | N127: -5 | O127: ˚C | P127: Refrigerant | R127: Temp | S127: 0 | T127: ˚C | U127: Refrigerant | W127: Temp | X127: 5 | Y127: ˚C | Z127: Refrigerant | AB127: Temp | AC127: 10 | AD127: ˚C | AE127: Refrigerant | AG127: Temp | AH127: 15 | AI127: ˚C
A128: xf | B128: hA | C128: 408.6 | D128: kJ/kg | F128: xf | G128: hA | H128: 408.6 | I128: kJ/kg | K128: xf | L128: hA | M128: 408.8 | N128: kJ/kg | P128: xf | Q128: hA | R128: 408.6 | S128: kJ/kg | U128: xf | V128: hA | W128: 408.8 | X128: kJ/kg | Z128: xf | AA128: hA | AB128: 408.6 | AC128: kJ/kg | AE128: xf | AF128: hA | AG128: 408.6 | AH128: kJ/kg
A129: (hC-hF)/(hC-hG) | B129: hB | C129: 438 | D129: kJ/kg | F129: (hC-hF)/(hC-hG) | G129: hB | H129: 446 | I129: kJ/kg | K129: (hC-hF)/(hC-hG) | L129: hB | M129: 453 | N129: kJ/kg | P129: (hC-hF)/(hC-hG) | Q129: hB | R129: 460 | S129: kJ/kg | U129: (hC-hF)/(hC-hG) | V129: hB | W129: 467 | X129: kJ/kg | Z129: (hC-hF)/(hC-hG) | AA129: hB | AB129: 473.1 | AC129: kJ/kg | AE129: (hC-hF)/(hC-hG) | AF129: hB | AG129: 480 | AH129: kJ/kg
A130: =(C130-C133)/(C130-C134) -> 0.8464566929 | B130: hC | C130: 431 | D130: kJ/kg | F130: =(H130-H133)/(H130-H134) -> 0.8777777778 | G130: hC | H130: 437 | I130: kJ/kg | K130: =(M130-M133)/(M130-M134) -> 0.9090909091 | L130: hC | M130: 445 | N130: kJ/kg | P130: =(R130-R133)/(R130-R134) -> 0.9325396825 | Q130: hC | R130: 451 | S130: kJ/kg | U130: =(W130-W133)/(W130-W134) -> 0.972 | V130: hC | W130: 458 | X130: kJ/kg | Z130: =(AB130-AB133)/(AB130-AB134) -> 1 | AA130: hC | AB130: 463 | AC130: kJ/kg | AE130: =(AG130-AG133)/(AG130-AG134) -> 1.032388664 | AF130: hC | AG130: 470 | AH130: kJ/kg
B131: hD | C131: 480 | D131: kJ/kg | G131: hD | H131: 486 | I131: kJ/kg | L131: hD | M131: 489 | N131: kJ/kg | Q131: hD | R131: 486 | S131: kJ/kg | V131: hD | W131: 483 | X131: kJ/kg | AA131: hD | AB131: 482 | AC131: kJ/kg | AF131: hD | AG131: 481 | AH131: kJ/kg
A132: COP two stage | B132: hE | C132: 216 | D132: kJ/kg | F132: COP two stage | G132: hE | H132: 215.8 | I132: kJ/kg | K132: COP two stage | L132: hE | M132: 215 | N132: kJ/kg | P132: COP two stage | Q132: hE | R132: 216 | S132: kJ/kg | U132: COP two stage | V132: hE | W132: 215 | X132: kJ/kg | Z132: COP two stage | AA132: hE | AB132: 215 | AC132: kJ/kg | AE132: COP two stage | AF132: hE | AG132: 215 | AH132: kJ/kg
A133: (hD-hE)/(xf(hB-hA)+(hD-hC) | B133: hF | C133: =C132 -> 216 | D133: kJ/kg | F133: (hD-hE)/(xf(hB-hA)+(hD-hC) | G133: hF | H133: =H132 -> 215.8 | I133: kJ/kg | K133: (hD-hE)/(xf(hB-hA)+(hD-hC) | L133: hF | M133: =M132 -> 215 | N133: kJ/kg | P133: (hD-hE)/(xf(hB-hA)+(hD-hC) | Q133: hF | R133: =R132 -> 216 | S133: kJ/kg | U133: (hD-hE)/(xf(hB-hA)+(hD-hC) | V133: hF | W133: =W132 -> 215 | X133: kJ/kg | Z133: (hD-hE)/(xf(hB-hA)+(hD-hC) | AA133: hF | AB133: =AB132 -> 215 | AC133: kJ/kg | AE133: (hD-hE)/(xf(hB-hA)+(hD-hC) | AF133: hF | AG133: =AG132 -> 215 | AH133: kJ/kg
A134: =(C131-C132)/(A130*(C129-C128)+(C131-C130)) -> 3.573080407 | B134: hG | C134: 177 | D134: kJ/kg | F134: =(H131-H132)/(F130*(H129-H128)+(H131-H130)) -> 3.302012329 | G134: hG | H134: 185 | I134: kJ/kg | K134: =(M131-M132)/(K130*(M129-M128)+(M131-M130)) -> 3.254859611 | L134: hG | M134: 192 | N134: kJ/kg | P134: =(R131-R132)/(P130*(R129-R128)+(R131-R130)) -> 3.255658165 | Q134: hG | R134: 199 | S134: kJ/kg | U134: =(W131-W132)/(U130*(W129-W128)+(W131-W130)) -> 3.285505527 | V134: hG | W134: 208 | X134: kJ/kg | Z134: =(AB131-AB132)/(Z130*(AB129-AB128)+(AB131-AB130)) -> 3.19760479 | AA134: hG | AB134: =AB133 -> 215 | AC134: kJ/kg | AE134: =(AG131-AG132)/(AE130*(AG129-AG128)+(AG131-AG130)) -> 3.140030587 | AF134: hG | AG134: 223 | AH134: kJ/kg
B135: hH | C135: =C134 -> 177 | D135: kJ/kg | G135: hH | H135: =H134 -> 185 | I135: kJ/kg | L135: hH | M135: =M134 -> 192 | N135: kJ/kg | Q135: hH | R135: =R134 -> 199 | S135: kJ/kg | V135: hH | W135: =W134 -> 208 | X135: kJ/kg | AA135: hH | AB135: 215 | AC135: kJ/kg | AF135: hH | AG135: =AG134 -> 223 | AH135: kJ/kg
B137: mR410A | C137: 0.03 | D137: kg/s | G137: mR410A | H137: 0.03 | I137: kg/s | L137: mR410A | M137: 0.03 | N137: kg/s | Q137: mR410A | R137: 0.03 | S137: kg/s | V137: mR410A | W137: 0.03 | X137: kg/s | AA137: mR410A | AB137: 0.03 | AC137: kg/s | AF137: mR410A | AG137: 0.03 | AH137: kg/s
C139: Effect of comp | H139: Effect of comp | M139: Effect of comp | R139: Effect of comp | W139: Effect of comp | AB139: Effect of comp | AG139: Effect of comp
B140: 1. | C140: =(C137*A130)*(C129-C128) -> 0.7465748031 | D140: kW | G140: 1. | H140: =(H137*F130)*(H129-H128) -> 0.9848666667 | I140: kW | L140: 1. | M140: =(M137*K130)*(M129-M128) -> 1.205454545 | N140: kW | Q140: 1. | R140: =(R137*P130)*(R129-R128) -> 1.43797619 | S140: kW | V140: 1. | W140: =(W137*U130)*(W129-W128) -> 1.697112 | X140: kW | AA140: 1. | AB140: =(AB137*Z130)*(AB129-AB128) -> 1.935 | AC140: kW | AF140: 1. | AG140: =(AG137*AE130)*(AG129-AG128) -> 2.211376518 | AH140: kW
B141: 2. | C141: =C137*(C131-C130) -> 1.47 | D141: kW | G141: 2. | H141: =H137*(H131-H130) -> 1.47 | I141: kW | L141: 2. | M141: =M137*(M131-M130) -> 1.32 | N141: kW | Q141: 2. | R141: =R137*(R131-R130) -> 1.05 | S141: kW | V141: 2. | W141: =W137*(W131-W130) -> 0.75 | X141: kW | AA141: 2. | AB141: =AB137*(AB131-AB130) -> 0.57 | AC141: kW | AF141: 2. | AG141: =AG137*(AG131-AG130) -> 0.33 | AH141: kW
B142: Tot | C142: =SUM(C140:C141) -> 2.216574803 | D142: kW | G142: Tot | H142: =SUM(H140:H141) -> 2.454866667 | I142: kW | L142: Tot | M142: =SUM(M140:M141) -> 2.525454545 | N142: kW | Q142: Tot | R142: =SUM(R140:R141) -> 2.48797619 | S142: kW | V142: Tot | W142: =SUM(W140:W141) -> 2.447112 | X142: kW | AA142: Tot | AB142: =SUM(AB140:AB141) -> 2.505 | AC142: kW | AF142: Tot | AG142: =SUM(AG140:AG141) -> 2.541376518 | AH142: kW
C144: Effect of gas cooler | H144: Effect of gas cooler | M144: Effect of gas cooler | R144: Effect of gas cooler | W144: Effect of gas cooler | AB144: Effect of gas cooler | AG144: Effect of gas cooler
C145: =C137*(C131-C132) -> 7.92 | D145: kW | H145: =H137*(H131-H132) -> 8.106 | I145: kW | M145: =M137*(M131-M132) -> 8.22 | N145: kW | R145: =R137*(R131-R132) -> 8.1 | S145: kW | W145: =W137*(W131-W132) -> 8.04 | X145: kW | AB145: =AB137*(AB131-AB132) -> 8.01 | AC145: kW | AG145: =AG137*(AG131-AG132) -> 7.98 | AH145: kW
C147: COP-comp effect | H147: COP-comp effect | M147: COP-comp effect | R147: COP-comp effect | W147: COP-comp effect | AB147: COP-comp effect | AG147: COP-comp effect
C148: =C145/C142 -> 3.573080407 | H148: =H145/H142 -> 3.302012329 | M148: =M145/M142 -> 3.254859611 | R148: =R145/R142 -> 3.255658165 | W148: =W145/W142 -> 3.285505527 | AB148: =AB145/AB142 -> 3.19760479 | AG148: =AG145/AG142 -> 3.140030587
A158: Refrigerant | B158: R744
A159: Evaporator input | D159: 1. Compressor input | G159: 1. Compressor output | J159: 2. Compressor input | M159: 2. Compressor output
A160: Temperature | C160: ˚C | D160: Temperature | F160: ˚C | G160: Temperature | I160: ˚C | J160: Temperature | L160: ˚C | M160: Temperature | O160: ˚C
A161: Pressure | C161: bar | D161: Pressure | F161: bar | G161: Pressure | I161: bar | J161: Pressure | L161: bar | M161: Pressure | N161: 85 | O161: bar
D162: Power | F162: kW | J162: Power | L162: kW
D163: Isentropic efficiency | E163: 80 | F163: % | J163: Isentropic efficiency | K163: =E163 -> 80 | L163: %
D164: Heat loss | E164: 5 | F164: %
D165: mR744 | E165: 0.0233 | F165: kg/s | M165: Gas cooler output
M166: Temperature | N166: 10 | O166: ˚C
M167: Pressure | O167: bar
A170: Intermediat temp | B170: -15 | C170: ˚C | D170: -10 | E170: ˚C | F170: -5 | G170: ˚C | H170: 0 | I170: ˚C | J170: 5 | K170: ˚C | L170: 10 | M170: ˚C | N170: 15 | O170: ˚C
A171: Comp | B171: 2.48 | C171: kW | D171: 2.43 | E171: kW | F171: 2.44 | G171: kW | H171: 2.63 | I171: kW | J171: 2.31 | K171: kW | L171: 2.52 | M171: kW | N171: 2.84 | O171: kW
A172: Condenser | B172: 7.39 | C172: kW | D172: 7.32 | E172: kW | F172: 7.32 | G172: kW | H172: 7.46 | I172: kW | J172: 7.08 | K172: kW | L172: 7.25 | M172: kW | N172: 7.55 | O172: kW
A173: COP | B173: =B172/B171 -> 2.97983871 | D173: =D172/D171 -> 3.012345679 | F173: =F172/F171 -> 3 | H173: =H172/H171 -> 2.836501901 | J173: =J172/J171 -> 3.064935065 | L173: =L172/L171 -> 2.876984127 | N173: =N172/N171 -> 2.658450704
A176: Refrigerant | B176: R410A | C176: Temp | D176: -15 | E176: ˚C | F176: Refrigerant | G176: R410A | H176: Temp | I176: -10 | J176: ˚C | K176: Refrigerant | L176: R410A | M176: Temp | N176: -5 | O176: ˚C | P176: Refrigerant | Q176: R410A | R176: Temp | S176: 0 | T176: ˚C | U176: Refrigerant | V176: R410A | W176: Temp | X176: 5 | Y176: ˚C | Z176: Refrigerant | AA176: R410A | AB176: Temp | AC176: 10 | AD176: ˚C | AE176: Refrigerant | AF176: R410A | AG176: Temp | AH176: 15 | AI176: ˚C
A177: xf | B177: hA | C177: 439 | D177: kJ/kg | F177: xf | G177: hA | H177: 439 | I177: kJ/kg | K177: xf | L177: hA | M177: 439 | N177: kJ/kg | P177: xf | Q177: hA | R177: 439 | S177: kJ/kg | U177: xf | V177: hA | W177: 439 | X177: kJ/kg | Z177: xf | AA177: hA | AB177: 439 | AC177: kJ/kg | AE177: xf | AF177: hA | AG177: 439 | AH177: kJ/kg
A178: (hC-hF)/(hC-hG) | B178: hB | C178: 471 | D178: kJ/kg | F178: (hC-hF)/(hC-hG) | G178: hB | H178: 480 | I178: kJ/kg | K178: (hC-hF)/(hC-hG) | L178: hB | M178: 488 | N178: kJ/kg | P178: (hC-hF)/(hC-hG) | Q178: hB | R178: 497 | S178: kJ/kg | U178: (hC-hF)/(hC-hG) | V178: hB | W178: 505 | X178: kJ/kg | Z178: (hC-hF)/(hC-hG) | AA178: hB | AB178: 512 | AC178: kJ/kg | AE178: (hC-hF)/(hC-hG) | AF178: hB | AG178: 521 | AH178: kJ/kg
A179: =(C179-C182)/(C179-C183) -> 0.8 | B179: hC | C179: 461 | D179: kJ/kg | F179: =(H179-H182)/(H179-H183) -> 0.8356164384 | G179: hC | H179: 469 | I179: kJ/kg | K179: =(M179-M182)/(M179-M183) -> 0.8719723183 | L179: hC | M179: 477 | N179: kJ/kg | P179: =(R179-R182)/(R179-R183) -> 0.9122807018 | Q179: hC | R179: 485 | S179: kJ/kg | U179: =(W179-W182)/(W179-W183) -> 0.9537366548 | V179: hC | W179: 493 | X179: kJ/kg | Z179: =(AB179-AB182)/(AB179-AB183) -> 1 | AA179: hC | AB179: 501 | AC179: kJ/kg | AE179: =(AG179-AG182)/(AG179-AG183) -> 1 | AF179: hC | AG179: 509 | AH179: kJ/kg
B180: hD | C180: 542 | D180: kJ/kg | G180: hD | H180: 539 | I180: kJ/kg | L180: hD | M180: 539 | N180: kJ/kg | Q180: hD | R180: 545 | S180: kJ/kg | V180: hD | W180: 529 | X180: kJ/kg | AA180: hD | AB180: 536 | AC180: kJ/kg | AF180: hD | AG180: 549 | AH180: kJ/kg
A181: COP two stage | B181: hE | C181: 225 | D181: kJ/kg | F181: COP two stage | G181: hE | H181: 225 | I181: kJ/kg | K181: COP two stage | L181: hE | M181: 225 | N181: kJ/kg | P181: COP two stage | Q181: hE | R181: 225 | S181: kJ/kg | U181: COP two stage | V181: hE | W181: 225 | X181: kJ/kg | Z181: COP two stage | AA181: hE | AB181: 225 | AC181: kJ/kg | AE181: COP two stage | AF181: hE | AG181: 225 | AH181: kJ/kg
A182: (hD-hE)/(xf(hB-hA)+(hD-hC) | B182: hF | C182: =C181 -> 225 | D182: kJ/kg | F182: (hD-hE)/(xf(hB-hA)+(hD-hC) | G182: hF | H182: =H181 -> 225 | I182: kJ/kg | K182: (hD-hE)/(xf(hB-hA)+(hD-hC) | L182: hF | M182: =M181 -> 225 | N182: kJ/kg | P182: (hD-hE)/(xf(hB-hA)+(hD-hC) | Q182: hF | R182: =R181 -> 225 | S182: kJ/kg | U182: (hD-hE)/(xf(hB-hA)+(hD-hC) | V182: hF | W182: =W181 -> 225 | X182: kJ/kg | Z182: (hD-hE)/(xf(hB-hA)+(hD-hC) | AA182: hF | AB182: =AB181 -> 225 | AC182: kJ/kg | AE182: (hD-hE)/(xf(hB-hA)+(hD-hC) | AF182: hF | AG182: 225 | AH182: kJ/kg
A183: =(C180-C181)/(A179*(C178-C177)+(C180-C179)) -> 2.973733583 | B183: hG | C183: 166 | D183: kJ/kg | F183: =(H180-H181)/(F179*(H178-H177)+(H180-H179)) -> 3.011693601 | G183: hG | H183: 177 | I183: kJ/kg | K183: =(M180-M181)/(K179*(M178-M177)+(M180-M179)) -> 2.9982819 | L183: hG | M183: 188 | N183: kJ/kg | P183: =(R180-R181)/(P179*(R178-R177)+(R180-R179)) -> 2.834058421 | Q183: hG | R183: 200 | S183: kJ/kg | U183: =(W180-W181)/(U179*(W178-W177)+(W180-W179)) -> 3.072363689 | V183: hG | W183: 212 | X183: kJ/kg | Z183: =(AB180-AB181)/(Z179*(AB178-AB177)+(AB180-AB179)) -> 2.87962963 | AA183: hG | AB183: 225 | AC183: kJ/kg | AE183: =(AG180-AG181)/(AE179*(AG178-AG177)+(AG180-AG179)) -> 2.655737705 | AF183: hG | AG183: 225 | AH183: kJ/kg
B184: hH | C184: =C183 -> 166 | D184: kJ/kg | G184: hH | H184: =H183 -> 177 | I184: kJ/kg | L184: hH | M184: =M183 -> 188 | N184: kJ/kg | Q184: hH | R184: =R183 -> 200 | S184: kJ/kg | V184: hH | W184: =W183 -> 212 | X184: kJ/kg | AA184: hH | AB184: =AB183 -> 225 | AC184: kJ/kg | AF184: hH | AG184: =AG183 -> 225 | AH184: kJ/kg
B186: mR717 | C186: 0.0233 | D186: kg/s | G186: mR717 | H186: 0.0233 | I186: kg/s | L186: mR717 | M186: 0.0233 | N186: kg/s | Q186: mR717 | R186: 0.0233 | S186: kg/s | V186: mR717 | W186: 0.0233 | X186: kg/s | AA186: mR717 | AB186: 0.0233 | AC186: kg/s | AF186: mR717 | AG186: 0.0233 | AH186: kg/s
C188: Effect of comp | H188: Effect of comp | M188: Effect of comp | R188: Effect of comp | W188: Effect of comp | AB188: Effect of comp | AG188: Effect of comp
B189: 1. | C189: =(C186*A179)*(C178-C177) -> 0.59648 | D189: kW | G189: 1. | H189: =(H186*F179)*(H178-H177) -> 0.7982643836 | I189: kW | L189: 1. | M189: =(M186*K179)*(M178-M177) -> 0.9955307958 | N189: kW | Q189: 1. | R189: =(R186*P179)*(R178-R177) -> 1.23285614 | S189: kW | V189: 1. | W189: =(W186*U179)*(W178-W177) -> 1.466656228 | X189: kW | AA189: 1. | AB189: =(AB186*Z179)*(AB178-AB177) -> 1.7009 | AC189: kW | AF189: 1. | AG189: =(AG186*AE179)*(AG178-AG177) -> 1.9106 | AH189: kW
B190: 2. | C190: =C186*(C180-C179) -> 1.8873 | D190: kW | G190: 2. | H190: =H186*(H180-H179) -> 1.631 | I190: kW | L190: 2. | M190: =M186*(M180-M179) -> 1.4446 | N190: kW | Q190: 2. | R190: =R186*(R180-R179) -> 1.398 | S190: kW | V190: 2. | W190: =W186*(W180-W179) -> 0.8388 | X190: kW | AA190: 2. | AB190: =AB186*(AB180-AB179) -> 0.8155 | AC190: kW | AF190: 2. | AG190: =AG186*(AG180-AG179) -> 0.932 | AH190: kW
B191: Tot | C191: =SUM(C189:C190) -> 2.48378 | D191: kW | G191: Tot | H191: =SUM(H189:H190) -> 2.429264384 | I191: kW | L191: Tot | M191: =SUM(M189:M190) -> 2.440130796 | N191: kW | Q191: Tot | R191: =SUM(R189:R190) -> 2.63085614 | S191: kW | V191: Tot | W191: =SUM(W189:W190) -> 2.305456228 | X191: kW | AA191: Tot | AB191: =SUM(AB189:AB190) -> 2.5164 | AC191: kW | AF191: Tot | AG191: =SUM(AG189:AG190) -> 2.8426 | AH191: kW
C193: Effect of gas cooler | H193: Effect of gas cooler | M193: Effect of gas cooler | R193: Effect of gas cooler | W193: Effect of gas cooler | AB193: Effect of gas cooler | AG193: Effect of gas cooler
C194: =C186*(C180-C181) -> 7.3861 | D194: kW | H194: =H186*(H180-H181) -> 7.3162 | I194: kW | M194: =M186*(M180-M181) -> 7.3162 | N194: kW | R194: =R186*(R180-R181) -> 7.456 | S194: kW | W194: =W186*(W180-W181) -> 7.0832 | X194: kW | AB194: =AB186*(AB180-AB181) -> 7.2463 | AC194: kW | AG194: =AG186*(AG180-AG181) -> 7.5492 | AH194: kW
C196: COP-comp effect | H196: COP-comp effect | M196: COP-comp effect | R196: COP-comp effect | W196: COP-comp effect | AB196: COP-comp effect | AG196: COP-comp effect
C197: =C194/C191 -> 2.973733583 | H197: =H194/H191 -> 3.011693601 | M197: =M194/M191 -> 2.9982819 | R197: =R194/R191 -> 2.834058421 | W197: =W194/W191 -> 3.072363689 | AB197: =AB194/AB191 -> 2.87962963 | AG197: =AG194/AG191 -> 2.655737705

Sheet Best inerm. kol
A2: Refrigerant | C2: R744
A3: Two-stage Compression | K3: Refrigerant
A4: Evaporation temperature | C4: -35 | D4: ˚C | G4: Fixed value | K4: xf | L4: hA | M4: =r_hgastp(C2,C6,C5*100000)/1000 -> 439.1519206 | N4: kJ/kg | Q4: xf | R4: hA | S4: 538 | T4: kJ/kg
A5: Evaporation pressure | C5: =r_psatgasT(C2,C4)/100000 -> 12.03247599 | D5: bar | K5: (hC-hF)/(hC-hG) | L5: hB | M5: =C8+(C17-C8)/C15 -> 532.5986821 | N5: kJ/kg | Q5: (hC-hF)/(hC-hG) | R5: hB | S5: 629 | T5: kJ/kg
A6: Temperature in to compressor | C6: =C4+2 -> -33 | D6: ˚C | K6: =(M6-M9)/(M6-M10) -> 0.7458091174 | L6: hC | M6: =r_hgastp(C2,C23,C13*100000)/1000 -> 521.0600164 | N6: kJ/kg | Q6: =(S6-S9)/(S6-S10) -> 0.96 | R6: hC | S6: 610 | T6: kJ/kg
A7: 1. Compressor | L7: hD | M7: =C24+(C34-C24)/C32 -> 547.0047858 | N7: kJ/kg | R7: hD | S7: 653 | T7: kJ/kg
A8: Enthalpy input compressor | C8: =r_hgastp(C2,C6,C5*100000)/1000 -> 439.1519206 | D8: kJ/kg | K8: COP two stage | L8: hE | M8: =R_hsatliqT(C2,C28-G19)/1000 -> 225.5595067 | N8: kJ/kg | Q8: COP two stage | R8: hE | S8: 226 | T8: kJ/kg
A9: Entropy | C9: =R_SgasTP(C2,C6,C5*100000) -> 2033.712958 | D9: J/kgK | K9: (hD-hE)/(xf(hB-hA)+(hD-hC) | L9: hF | M9: =M8 -> 225.5595067 | N9: kJ/kg | Q9: (hD-hE)/(xf(hB-hA)+(hD-hC) | R9: hF | S9: =S8 -> 226 | T9: kJ/kg
A10: Specific volume | C10: =R_vgasTP(C2,C6,C5*100000) -> 0.0324613879 | D10: m3/kg | K10: =(M7-M8)/(K6*(M5-M4)+(M7-M6)) -> 3.361054736 | L10: hG | M10: =R_HsatliqP(C2,C5*100000)/1000 -> 124.8453513 | N10: kJ/kg | Q10: =(S7-S8)/(Q6*(S5-S4)+(S7-S6)) -> 3.275544646 | R10: hG | S10: 210 | T10: kJ/kg
L11: hH | M11: =M10 -> 124.8453513 | N11: kJ/kg | R11: hH | S11: =S10 -> 210 | T11: kJ/kg
A12: Intermediat temperature | C12: 15 | D12: ˚C
A13: Intermediat pressure | C13: =r_psatgasT(C2,C12)/100000 -> 50.85980323 | D13: bar | L13: mR717 | M13: 0.005 | N13: kg/s | R13: mR717 | S13: 0.02 | T13: kg/s
A14: Intermediat pressure ratio | C14: =C13/C5 -> 4.226877601
A15: Isentropic efficiency | C15: 0.7 | M15: Effect of comp | S15: Effect of comp
L16: 1. | M16: =(M13*K6)*(M5-M4) -> 0.3484672335 | N16: kW | R16: 1. | S16: =(S13*Q6)*(S5-S4) -> 1.7472 | T16: kW
A17: Isentropic entalpy | C17: =R_hgasSP(C2,C9,C13*100000)/1000 -> 504.5646537 | D17: kJ/kg | L17: 2. | M17: =M13*(M7-M6) -> 0.1297238469 | N17: kW | R17: 2. | S17: =S13*(S7-S6) -> 0.86 | T17: kW
A18: Real entropy | C18: =C8+(C17-C8)/C15 -> 532.5986821 | D18: kJ/kg | L18: Tot | M18: =SUM(M16:M17) -> 0.4781910804 | N18: kW | R18: Tot | S18: =SUM(S16:S17) -> 2.6072 | T18: kW
A19: Temperature out of compressor | C19: =R_tgasHP(C2,C18*1000,C13*100000) -> 92.41428619 | D19: ˚C | E19: Subcooling of condenser | G19: 18 | H19: K
A20: Enthalpy on the dewpoint line | C20: =R_hsatgasT(C2,C12)/1000 -> 417.7201487 | D20: kJ/kg | E20: Enthalpy out of the condenser | G20: =R_hsatliqT(C2,C28-G19)/1000 -> 225.5595067 | H20: kJ/kg | M20: Effect of gas cooler | S20: Effect of gas cooler
A21: 2. Compressor | M21: =M13*(M7-M8) -> 1.607226395 | N21: kW | S21: =S13*(S7-S8) -> 8.54 | T21: kW
A22: Intermediat cooling | C22: 10 | D22: K | E22: Enthalpy in to evaporator | G22: 225 | H22: kJ/kg
A23: Temperature in to 2. compressor | C23: =C19-C22 -> 82.41428619 | D23: ˚C | E23: Moist vapor - xf | G23: =(C24-G20)/(C24-G22) -> 0.9981101578 | M23: COP-comp effect | S23: COP-comp effect
A24: Enthalpy input in 2. compressor | C24: =r_hgastp(C2,C23,C13*100000)/1000 -> 521.0600164 | D24: kJ/kg | E24: Cooling capacity | G24: =G26*(C8-G22) -> 4.989739751 | H24: kW | M24: =M21/M18 -> 3.361054736 | S24: =S21/S18 -> 3.275544646
A25: Entropy | C25: =R_SgasTP(C2,C23,C13*100000) -> 2080.484277 | D25: J/kgK | E25: Cooling COP | G25: =G24/G34 -> 1.796351501
A26: Specific volume | C26: =R_vgasTP(C2,C23,C13*100000) -> 0.01122280976 | D26: m3/kg | E26: Refrigerant mass flow | G26: 0.0233 | H26: kg/s
E27: Volume flow | G27: =G28/3600 -> 0.002166666667 | H27: m3/s
A28: Condensating temperature | C28: 28 | D28: ˚C | E28: Volume flow | G28: =G30*G29 -> 7.8 | H28: m3/h
A29: Condensating pressure | C29: =r_psatgasT(C2,C28)/100000 -> 68.89204862 | D29: bar | E29: Volumetric efficiency | G29: 0.65
A30: Pressure ration | C30: =C29/C13 -> 1.354548076 | E30: Cylinder volume | G30: 12 | H30: m3/h
A31: Pressure ration TOTAL | C31: =C29/C5 -> 5.725508922
A32: Isentropic efficiency | C32: 0.7 | E32: Compressor effect 1. compressor | G32: =(G26*G23)*(C18-C8) -> 2.173194771 | H32: kW
E33: Compressor effect 2. compressor | G33: =G26*(C35-C24) -> 0.6045131265 | H33: kW
A34: Isentropic entalpy | C34: =R_hgasSP(C2,C25,C29*100000)/1000 -> 539.2213549 | D34: kJ/kg | E34: Compressor effect TOTAL | G34: =G33+G32 -> 2.777707897 | H34: kW
A35: Real entropy | C35: =C24+(C34-C24)/C32 -> 547.0047858 | D35: kJ/kg | E35: Over heating heat | G35: =(G26*(C35-C37))+((G26/2)*(C18-C20)) -> 5.184514807 | H35: kW
A36: Temperature out of compressor | C36: =R_tgasHP(C2,C35*1000,C29*100000) -> 115.2877248 | D36: ˚C | E36: Heating capacity | G36: =(G26*(C35-G20)) -> 7.489675002 | H36: kW
A37: Enthalpy on the dewpoint line | C37: =R_hsatgasT(C2,C28)/1000 -> 381.9326873 | D37: kJ/kg | E37: Heating COP | G37: =G36/G34 -> 2.696350833
A40: Refrigerant | B40: R744
A41: Intermediat temp | B41: -15 | C41: ˚C | D41: -10 | E41: ˚C | F41: -5 | G41: ˚C | H41: 0 | I41: ˚C | J41: 5 | K41: ˚C | L41: 10 | M41: ˚C | N41: 15 | O41: ˚C
A42: Comp | B42: 2.74 | C42: kW | D42: 2.77 | E42: kW | F42: 2.78 | G42: kW | H42: 2.79 | I42: kW | J42: 2.79 | K42: kW | L42: 2.79 | M42: kW | N42: 2.78 | O42: kW
A43: Gas cooler | B43: 7.47 | C43: kW | D43: 7.49 | E43: kW | F43: 7.51 | G43: kW | H43: 7.51 | I43: kW | J43: 7.51 | K43: kW | L43: 7.5 | M43: kW | N43: 7.49 | O43: kW
A44: COP | B44: =B43/(B42) -> 2.726277372 | D44: =D43/(D42) -> 2.703971119 | F44: =F43/(F42) -> 2.701438849 | H44: =H43/(H42) -> 2.691756272 | J44: =J43/(J42) -> 2.691756272 | L44: =L43/(L42) -> 2.688172043 | N44: =N43/(N42) -> 2.694244604
A49: Refrigerant | B49: R717
A50: Intermediat temp | B50: -15 | C50: ˚C | D50: -10 | E50: ˚C | F50: -5 | G50: ˚C | H50: 0 | I50: ˚C | J50: 5 | K50: ˚C | L50: 10 | M50: ˚C | N50: 15 | O50: ˚C
A51: Comp | B51: 2.65 | C51: kW | D51: 2.64 | E51: kW | F51: 2.64 | G51: kW | H51: 2.63 | I51: kW | J51: 2.62 | K51: kW | L51: 2.61 | M51: kW | N51: 2.61 | O51: kW
A52: Condenser | B52: 8.54 | C52: kW | D52: 8.56 | E52: kW | F52: 8.56 | G52: kW | H52: 8.56 | I52: kW | J52: 8.55 | K52: kW | L52: 8.54 | M52: kW | N52: 8.52 | O52: kW
A53: COP | B53: =B52/(B51) -> 3.222641509 | D53: =D52/(D51) -> 3.242424242 | F53: =F52/(F51) -> 3.242424242 | H53: =H52/(H51) -> 3.254752852 | J53: =J52/(J51) -> 3.263358779 | L53: =L52/(L51) -> 3.272030651 | N53: =N52/(N51) -> 3.264367816
A55: Refrigerant | B55: R717
A56: Intermediat temp | B56: -15 | C56: ˚C | D56: -10 | E56: ˚C | F56: -5 | G56: ˚C | H56: 0 | I56: ˚C | J56: 5 | K56: ˚C | L56: 10 | M56: ˚C | N56: 15 | O56: ˚C
A57: Comp | B57: 2.57 | C57: kW | D57: 2.59 | E57: kW | F57: 2.62 | G57: kW | H57: 2.66 | I57: kW | J57: 2.71 | K57: kW | L57: 2.79 | M57: kW | N57: 2.78 | O57: kW
A58: Condenser | B58: 7.47 | C58: kW | D58: 7.49 | E58: kW | F58: 7.51 | G58: kW | H58: 7.51 | I58: kW | J58: 7.51 | K58: kW | L58: 7.5 | M58: kW | N58: 7.49 | O58: kW
A59: COP | B59: =B58/(B57) -> 2.906614786 | D59: =D58/(D57) -> 2.891891892 | F59: =F58/(F57) -> 2.866412214 | H59: =H58/(H57) -> 2.823308271 | J59: =J58/(J57) -> 2.771217712 | L59: =L58/(L57) -> 2.688172043 | N59: =N58/(N57) -> 2.694244604
A64: Refrigerant | B64: R290
A65: Intermediat temp | B65: -15 | C65: ˚C | D65: -10 | E65: ˚C | F65: -5 | G65: ˚C | H65: 0 | I65: ˚C | J65: 5 | K65: ˚C | L65: 10 | M65: ˚C | N65: 15 | O65: ˚C
A66: Comp | B66: 2.57 | C66: kW | D66: 2.58 | E66: kW | F66: 2.6 | G66: kW | H66: 2.63 | I66: kW | J66: 2.67 | K66: kW | L66: 2.73 | M66: kW | N66: 2.73 | O66: kW
A67: Gas cooler | B67: 8.61 | C67: kW | D67: 8.62 | E67: kW | F67: 8.62 | G67: kW | H67: 8.62 | I67: kW | J67: 8.61 | K67: kW | L67: 8.61 | M67: kW | N67: 8.59 | O67: kW
A68: COP | B68: =B67/(B66) -> 3.350194553 | D68: =D67/(D66) -> 3.341085271 | F68: =F67/(F66) -> 3.315384615 | H68: =H67/(H66) -> 3.27756654 | J68: =J67/(J66) -> 3.224719101 | L68: =L67/(L66) -> 3.153846154 | N68: =N67/(N66) -> 3.146520147
A73: Refrigerant | B73: R410A
A74: Intermediat temp | B74: -15 | C74: ˚C | D74: -10 | E74: ˚C | F74: -5 | G74: ˚C | H74: 0 | I74: ˚C | J74: 5 | K74: ˚C | L74: 10 | M74: ˚C | N74: 15 | O74: ˚C
A75: Comp | B75: 2.48 | C75: kW | D75: 2.49 | E75: kW | F75: 2.52 | G75: kW | H75: 2.55 | I75: kW | J75: 2.59 | K75: kW | L75: 2.64 | M75: kW | N75: 2.63 | O75: kW
A76: Gas cooler | B76: 8.19 | C76: kW | D76: 8.2 | E76: kW | F76: 8.21 | G76: kW | H76: 8.21 | I76: kW | J76: 8.21 | K76: kW | L76: 8.2 | M76: kW | N76: 8.19 | O76: kW
A77: COP | B77: =B76/(B75) -> 3.302419355 | D77: =D76/(D75) -> 3.293172691 | F77: =F76/(F75) -> 3.257936508 | H77: =H76/(H75) -> 3.219607843 | J77: =J76/(J75) -> 3.16988417 | L77: =L76/(L75) -> 3.106060606 | N77: =N76/(N75) -> 3.114068441

Sheet Best intermediate
A1: Find the best intermediat pressure/temperature
A4: Refrigerant | C4: R717
A5: Evaporator input | E5: 1. Compressor input | H5: 1. Compressor output | K5: 2. Compressor input | N5: 2. Compressor output
A6: Temperature | C6: -35 | D6: ˚C | E6: Temperature | F6: -33 | G6: ˚C | H6: Temperature | J6: ˚C | K6: Temperature | M6: ˚C | N6: Temperature | P6: ˚C
A7: Pressure | D7: bar | E7: Pressure | G7: bar | H7: Pressure | J7: bar | K7: Pressure | M7: bar | N7: Pressure | P7: bar
E8: Power | G8: kW | K8: Power | M8: kW
E9: Isentropic efficiency | F9: 70 | G9: % | K9: Isentropic efficiency | L9: =F9 -> 70 | M9: %
E10: Heat loss | F10: 5 | G10: % | N10: Condenser temperature
E11: mR717 total | F11: 0.005 | G11: kg/s | N11: Temperature | O11: 28 | P11: ˚C
N12: Output | O12: 10 | P12: ˚C
A14: Log p-h diagram
A15: Intermediat temp | B15: ˚C | C15: -15 | D15: ˚C | E15: -10 | F15: ˚C | G15: -5 | H15: ˚C | I15: 0 | J15: ˚C | K15: 5 | L15: ˚C | M15: 10 | N15: ˚C | O15: 15 | P15: ˚C
A16: Comp | B16: kW | C16: 1.82 | D16: kW | E16: 1.71 | F16: kW | G16: 1.63 | H16: kW | I16: 1.54 | J16: kW | K16: 1.46 | L16: kW | M16: 1.41 | N16: kW | O16: 1.42 | P16: kW
A17: Gas cooler | B17: kW | C17: 7.99 | D17: kW | E17: 8.03 | F17: kW | G17: 8.04 | H17: kW | I17: 8.04 | J17: kW | K17: 8.07 | L17: kW | M17: 8.12 | N17: kW | O17: 8.24 | P17: kW
A18: COP | C18: =C17/C16 -> 4.39010989 | E18: =E17/E16 -> 4.695906433 | G18: =G17/G16 -> 4.932515337 | I18: =I17/I16 -> 5.220779221 | K18: =K17/K16 -> 5.52739726 | M18: =M17/M16 -> 5.758865248 | O18: =O17/O16 -> 5.802816901
A21: CoolPack
A22: Intermediat temp | B22: ˚C | C22: -15 | D22: ˚C | E22: -10 | F22: ˚C | G22: -5 | H22: ˚C | I22: 0 | J22: ˚C | K22: 5 | L22: ˚C | M22: 10 | N22: ˚C | O22: 15 | P22: ˚C
A23: Comp | B23: kW | C23: 2.6 | D23: kW | E23: 2.5 | F23: kW | G23: 2.4 | H23: kW | I23: 2.2 | J23: kW | K23: 2.1 | L23: kW | M23: 2 | N23: kW | O23: 1.8 | P23: kW
A24: Condenser | B24: kW | C24: 9.4 | D24: kW | E24: 9.4 | F24: kW | G24: 9.5 | H24: kW | I24: 9.5 | J24: kW | K24: 9.5 | L24: kW | M24: 9.6 | N24: kW | O24: 9.6 | P24: kW
A25: COP | C25: =C24/(C23) -> 3.615384615 | E25: =E24/(E23) -> 3.76 | G25: =G24/(G23) -> 3.958333333 | I25: =I24/(I23) -> 4.318181818 | K25: =K24/(K23) -> 4.523809524 | M25: =M24/(M23) -> 4.8 | O25: =O24/(O23) -> 5.333333333
A28: Kolsaker
A29: Intermediat temp | B29: ˚C | C29: -15 | D29: ˚C | E29: -10 | F29: ˚C | G29: -5 | H29: ˚C | I29: 0 | J29: ˚C | K29: 5 | L29: ˚C | M29: 10 | N29: ˚C | O29: 15 | P29: ˚C
A30: Comp | B30: kW | C30: 2.74 | D30: kW | E30: 2.77 | F30: kW | G30: 2.78 | H30: kW | I30: 2.79 | J30: kW | K30: 2.79 | L30: kW | M30: 2.79 | N30: kW | O30: 2.78 | P30: kW
A31: Gas cooler | B31: kW | C31: 7.47 | D31: kW | E31: 7.49 | F31: kW | G31: 7.51 | H31: kW | I31: 7.51 | J31: kW | K31: 7.51 | L31: kW | M31: 7.5 | N31: kW | O31: 7.49 | P31: kW
A32: COP | C32: =C31/(C30) -> 2.726277372 | E32: =E31/(E30) -> 2.703971119 | G32: =G31/(G30) -> 2.701438849 | I32: =I31/(I30) -> 2.691756272 | K32: =K31/(K30) -> 2.691756272 | M32: =M31/(M30) -> 2.688172043 | O32: =O31/(O30) -> 2.694244604
A42: Refrigerant | C42: R290
A44: Evaporator input | E44: 1. Compressor input | H44: 1. Compressor output | K44: 2. Compressor input | N44: 2. Compressor output
A45: Temperature | C45: -35 | D45: ˚C | E45: Temperature | G45: ˚C | H45: Temperature | J45: ˚C | K45: Temperature | M45: ˚C | N45: Temperature | P45: ˚C
A46: Pressure | D46: bar | E46: Pressure | G46: bar | H46: Pressure | J46: bar | K46: Pressure | M46: bar | N46: Pressure | P46: bar
E47: Power | G47: kW | K47: Power | M47: kW
E48: Isentropic efficiency | F48: 70 | G48: % | K48: Isentropic efficiency | L48: =F48 -> 70 | M48: %
E49: Heat loss | F49: 5 | G49: % | N49: Condenser temperature
E50: mR290 total | F50: 0.02 | G50: kg/s | N50: Temperature | O50: 30 | P50: ˚C
N51: Output | O51: 10 | P51: ˚C
A53: Log p-h diagram
A54: Intermediat temp | B54: ˚C | C54: -15 | D54: ˚C | E54: -10 | F54: ˚C | G54: -5 | H54: ˚C | I54: 0 | J54: ˚C | K54: 5 | L54: ˚C | M54: 10 | N54: ˚C | O54: 15 | P54: ˚C
A55: Comp | B55: kW | C55: 2.5 | D55: kW | E55: 2.51 | F55: kW | G55: 2.48 | H55: kW | I55: 2.51 | J55: kW | K55: 2.56 | L55: kW | M55: 2.62 | N55: kW | O55: 2.79 | P55: kW
A56: Condenser | B56: kW | C56: 8.5 | D56: kW | E56: 8.54 | F56: kW | G56: 8.48 | H56: kW | I56: 8.48 | J56: kW | K56: 8.48 | L56: kW | M56: 8.544 | N56: kW | O56: 8.54 | P56: kW
A57: COP | C57: =C56/C55 -> 3.4 | E57: =E56/E55 -> 3.402390438 | G57: =G56/G55 -> 3.419354839 | I57: =I56/I55 -> 3.378486056 | K57: =K56/K55 -> 3.3125 | M57: =M56/M55 -> 3.261068702 | O57: =O56/O55 -> 3.0609319
A60: CoolPack
A61: Intermediat temp | B61: ˚C | C61: -15 | D61: ˚C | E61: -10 | F61: ˚C | G61: -5 | H61: ˚C | I61: 0 | J61: ˚C | K61: 5 | L61: ˚C | M61: 10 | N61: ˚C | O61: 15 | P61: ˚C
A62: Comp | B62: kW | C62: 2.5 | D62: kW | E62: 2.4 | F62: kW | G62: 2.2 | H62: kW | I62: 2.1 | J62: kW | K62: 1.9 | L62: kW | M62: 1.8 | N62: kW | O62: 1.7 | P62: kW
A63: Gas cooler | B63: kW | C63: 9.6 | D63: kW | E63: 9.4 | F63: kW | G63: 9.2 | H63: kW | I63: 9 | J63: kW | K63: 8.8 | L63: kW | M63: 8.6 | N63: kW | O63: 8.4 | P63: kW
A64: COP | C64: =C63/(C62) -> 3.84 | E64: =E63/(E62) -> 3.916666667 | G64: =G63/(G62) -> 4.181818182 | I64: =I63/(I62) -> 4.285714286 | K64: =K63/(K62) -> 4.631578947 | M64: =M63/(M62) -> 4.777777778 | O64: =O63/(O62) -> 4.941176471
A67: Kolsaker
A68: Intermediat temp | B68: ˚C | C68: -15 | D68: ˚C | E68: -10 | F68: ˚C | G68: -5 | H68: ˚C | I68: 0 | J68: ˚C | K68: 5 | L68: ˚C | M68: 10 | N68: ˚C | O68: 15 | P68: ˚C
A69: Comp | B69: kW | C69: 2.57 | D69: kW | E69: 2.58 | F69: kW | G69: 2.6 | H69: kW | I69: 2.63 | J69: kW | K69: 2.67 | L69: kW | M69: 2.73 | N69: kW | O69: 2.73 | P69: kW
A70: Gas cooler | B70: kW | C70: 8.61 | D70: kW | E70: 8.62 | F70: kW | G70: 8.62 | H70: kW | I70: 8.62 | J70: kW | K70: 8.61 | L70: kW | M70: 8.61 | N70: kW | O70: 8.59 | P70: kW
A71: COP | C71: =C70/(C69) -> 3.350194553 | E71: =E70/(E69) -> 3.341085271 | G71: =G70/(G69) -> 3.315384615 | I71: =I70/(I69) -> 3.27756654 | K71: =K70/(K69) -> 3.224719101 | M71: =M70/(M69) -> 3.153846154 | O71: =O70/(O69) -> 3.146520147
A81: Refrigerant | C81: R410A
A82: Evaporator input | E82: 1. Compressor input | H82: 1. Compressor output | K82: 2. Compressor input | N82: 2. Compressor output
A83: Temperature | D83: ˚C | E83: Temperature | G83: ˚C | H83: Temperature | J83: ˚C | K83: Temperature | M83: ˚C | N83: Temperature | P83: ˚C
A84: Pressure | D84: bar | E84: Pressure | G84: bar | H84: Pressure | J84: bar | K84: Pressure | M84: bar | N84: Pressure | P84: bar
E85: Power | G85: kW | K85: Power | M85: kW
E86: Isentropic efficiency | F86: 70 | G86: % | K86: Isentropic efficiency | L86: =F86 -> 70 | M86: %
E87: Heat loss | F87: 5 | G87: % | N87: Condenser temperature
E88: mR140A total | F88: 0.03 | G88: kg/s | N88: Temperature | O88: 28 | P88: ˚C
N89: Output | O89: 10 | P89: ˚C
A91: Log p-h diagram
A92: Intermediat temp | B92: ˚C | C92: -15 | D92: ˚C | E92: -10 | F92: ˚C | G92: -5 | H92: ˚C | I92: 0 | J92: ˚C | K92: 5 | L92: ˚C | M92: 10 | N92: ˚C | O92: 15 | P92: ˚C
A93: Comp | B93: kW | C93: 2.22 | D93: kW | E93: 2.3 | F93: kW | G93: 2.53 | H93: kW | I93: 2.49 | J93: kW | K93: 2.44 | L93: kW | M93: 2.51 | N93: kW | O93: 2.54 | P93: kW
A94: Condenser | B94: kW | C94: 7.92 | D94: kW | E94: 7.49 | F94: kW | G94: 8.22 | H94: kW | I94: 8.1 | J94: kW | K94: 8.04 | L94: kW | M94: 8.01 | N94: kW | O94: 7.98 | P94: kW
A95: COP | C95: =C94/C93 -> 3.567567568 | E95: =E94/E93 -> 3.256521739 | G95: =G94/G93 -> 3.249011858 | I95: =I94/I93 -> 3.253012048 | K95: =K94/K93 -> 3.295081967 | M95: =M94/M93 -> 3.19123506 | O95: =O94/O93 -> 3.141732283
A98: CoolPack
A99: Intermediat temp | B99: ˚C | C99: -15 | D99: ˚C | E99: -10 | F99: ˚C | G99: -5 | H99: ˚C | I99: 0 | J99: ˚C | K99: 5 | L99: ˚C | M99: 10 | N99: ˚C | O99: 15 | P99: ˚C
A100: Comp | B100: kW | C100: 2.2 | D100: kW | E100: 2.1 | F100: kW | G100: 1.9 | H100: kW | I100: 1.8 | J100: kW | K100: 1.7 | L100: kW | M100: 1.6 | N100: kW | O100: 1.5 | P100: kW
A101: Gas cooler | B101: kW | C101: 8.5 | D101: kW | E101: 8.2 | F101: kW | G101: 8 | H101: kW | I101: 7.8 | J101: kW | K101: 7.6 | L101: kW | M101: 7.5 | N101: kW | O101: 7.3 | P101: kW
A102: COP | C102: =C101/(C100) -> 3.863636364 | E102: =E101/(E100) -> 3.904761905 | G102: =G101/(G100) -> 4.210526316 | I102: =I101/(I100) -> 4.333333333 | K102: =K101/(K100) -> 4.470588235 | M102: =M101/(M100) -> 4.6875 | O102: =O101/(O100) -> 4.866666667
A105: Kolsaker
A106: Intermediat temp | B106: ˚C | C106: -15 | D106: ˚C | E106: -10 | F106: ˚C | G106: -5 | H106: ˚C | I106: 0 | J106: ˚C | K106: 5 | L106: ˚C | M106: 10 | N106: ˚C | O106: 15 | P106: ˚C
A107: Comp | B107: kW | C107: 2.48 | D107: kW | E107: 2.49 | F107: kW | G107: 2.52 | H107: kW | I107: 2.55 | J107: kW | K107: 2.59 | L107: kW | M107: 2.64 | N107: kW | O107: 2.63 | P107: kW
A108: Gas cooler | B108: kW | C108: 8.19 | D108: kW | E108: 8.2 | F108: kW | G108: 8.21 | H108: kW | I108: 8.21 | J108: kW | K108: 8.21 | L108: kW | M108: 8.2 | N108: kW | O108: 8.19 | P108: kW
A109: COP | C109: =C108/(C107) -> 3.302419355 | E109: =E108/(E107) -> 3.293172691 | G109: =G108/(G107) -> 3.257936508 | I109: =I108/(I107) -> 3.219607843 | K109: =K108/(K107) -> 3.16988417 | M109: =M108/(M107) -> 3.106060606 | O109: =O108/(O107) -> 3.114068441
A119: Refrigerant | C119: R744
A120: Evaporator input | E120: 1. Compressor input | H120: 1. Compressor output | K120: 2. Compressor input | N120: 2. Compressor output
A121: Temperature | D121: ˚C | E121: Temperature | G121: ˚C | H121: Temperature | J121: ˚C | K121: Temperature | M121: ˚C | N121: Temperature | P121: ˚C
A122: Pressure | D122: bar | E122: Pressure | G122: bar | H122: Pressure | J122: bar | K122: Pressure | M122: bar | N122: Pressure | O122: 85 | P122: bar
E123: Power | G123: kW | K123: Power | M123: kW
E124: Isentropic efficiency | F124: 80 | G124: % | K124: Isentropic efficiency | L124: =F124 -> 80 | M124: %
E125: Heat loss | F125: 5 | G125: %
E126: mR744 | F126: 0.0233 | G126: kg/s | N126: Gas cooler output
N127: Temperature | O127: 10 | P127: ˚C
N128: Pressure | P128: bar
A130: Log p-h diagram
A131: Intermediat temp | B131: ˚C | C131: -15 | E131: -10 | G131: -5 | I131: 0 | K131: 5 | M131: 10 | O131: 15
A132: Comp | B132: kW | C132: 2.48 | E132: 2.43 | G132: 2.44 | I132: 2.63 | K132: 2.31 | M132: 2.52 | O132: 2.84
A133: Condenser | B133: kW | C133: 7.39 | E133: 7.32 | G133: 7.32 | I133: 7.46 | K133: 7.08 | M133: 7.25 | O133: 7.55
A134: COP | C134: =C133/C132 -> 2.97983871 | E134: =E133/E132 -> 3.012345679 | G134: =G133/G132 -> 3 | I134: =I133/I132 -> 2.836501901 | K134: =K133/K132 -> 3.064935065 | M134: =M133/M132 -> 2.876984127 | O134: =O133/O132 -> 2.658450704
A137: CoolPack
A138: Intermediat temp | B138: ˚C | C138: -15 | D138: ˚C | E138: -10 | F138: ˚C | G138: -5 | H138: ˚C | I138: 0 | J138: ˚C | K138: 5 | L138: ˚C | M138: 10 | N138: ˚C | O138: 15 | P138: ˚C
A139: Comp | B139: kW | C139: 2.68 | D139: kW | E139: 2.71 | F139: kW | G139: 2.73 | H139: kW | I139: 2.73 | J139: kW | K139: 2.76 | L139: kW | M139: 2.78 | N139: kW | O139: 2.79 | P139: kW
A140: Gas cooler | B140: kW | C140: 7.28 | D140: kW | E140: 7.3 | F140: kW | G140: 7.32 | H140: kW | I140: 7.33 | J140: kW | K140: 7.34 | L140: kW | M140: 7.35 | N140: kW | O140: 7.35 | P140: kW
A141: COP | C141: =C140/(C139) -> 2.71641791 | E141: =E140/(E139) -> 2.693726937 | G141: =G140/(G139) -> 2.681318681 | I141: =I140/(I139) -> 2.684981685 | K141: =K140/(K139) -> 2.65942029 | M141: =M140/(M139) -> 2.643884892 | O141: =O140/(O139) -> 2.634408602
A144: Kolsaker
A145: Intermediat temp | B145: ˚C | C145: -15 | D145: ˚C | E145: -10 | F145: ˚C | G145: -5 | H145: ˚C | I145: 0 | J145: ˚C | K145: 5 | L145: ˚C | M145: 10 | N145: ˚C | O145: 15 | P145: ˚C
A146: Comp | B146: kW | C146: 2.74 | D146: kW | E146: 2.77 | F146: kW | G146: 2.78 | H146: kW | I146: 2.79 | J146: kW | K146: 2.79 | L146: kW | M146: 2.79 | N146: kW | O146: 2.78 | P146: kW
A147: Gas cooler | B147: kW | C147: 7.47 | D147: kW | E147: 7.49 | F147: kW | G147: 7.51 | H147: kW | I147: 7.51 | J147: kW | K147: 7.51 | L147: kW | M147: 7.5 | N147: kW | O147: 7.49 | P147: kW
A148: COP | C148: =C147/(C146) -> 2.726277372 | E148: =E147/(E146) -> 2.703971119 | G148: =G147/(G146) -> 2.701438849 | I148: =I147/(I146) -> 2.691756272 | K148: =K147/(K146) -> 2.691756272 | M148: =M147/(M146) -> 2.688172043 | O148: =O147/(O146) -> 2.694244604
A156: When considering the above values, the best suited value to be used as the intermediat temperature in a two-stage compression in a heat pump should be 5ºC.
A157: This is because in the log p-h diagram for R744 and R410A the peak COP was at this temperature. Thereby it is some consistency
A158: There was no peak COP in R717
A159: R290 has a COP peak at 0ºC the log p-h diagram
A160: R744 has a COP peak at 0ºC in CoolPack

Sheet Confirm Kolsaker
A1: Confirmation of the one and two stage compression
B10: Refrigerant | D10: R717 | G10: Refrigerant | I10: R717
B11: One-stage Compression | G11: Two-stage Compression
B12: Evaporation temperature | D12: -30 | E12: ˚C | G12: Evaporation temperature | I12: -35 | J12: ˚C | M12: Log p-h diagram CoolPack | S12: Difference in h-value 2 stage
B13: Evaporation pressure | D13: =r_psatgasT(D10,D12)/100000 -> 1.194857562 | E13: bar | G13: Evaporation pressure | I13: =r_psatgasT(I10,I12)/100000 -> 0.9313923431 | J13: bar | M13: xf | N13: hA | O13: 1419.8 | P13: kJ/kg | T13: Kolsaker | U13: Log p-h diagram | W13: % difference
B14: Temperature in to compressor | D14: =D12+2 -> -28 | E14: ˚C | G14: Temperature in to compressor | I14: =I12+2 -> -33 | J14: ˚C | M14: (hC-hF)/(hC-hG) | N14: hB | O14: 1762.8 | P14: kJ/kg | S14: hA-hB | T14: =I26-I16 -> 342.9013186 | U14: =O14-O13 -> 343 | W14: =(U14-T14)/U14*100 -> 0.02877009903
G15: 1. Compressor | M15: =(O15-O18)/(O15-O19) -> 0.9853562563 | N15: hC | O15: 1738.19 | P15: kJ/kg | S15: hB-hC | T15: =I26-I32 -> 23.57031956 | U15: =O14-O15 -> 24.61 | W15: =(U15-T15)/U15*100 -> 4.224625933
B16: Enthalpy input compressor | D16: =r_hgastp(D10,D14,D13*100000)/1000 -> 1588.85415 | E16: kJ/kg | G16: Enthalpy input compressor | I16: =r_hgastp(I10,I14,I13*100000)/1000 -> 1581.145124 | J16: kJ/kg | N16: hD | O16: 1894.2 | P16: kJ/kg | S16: hC-hD | T16: =I43-I32 -> 218.7772946 | U16: =O16-O15 -> 156.01 | W16: -40.2328662
B17: Entropy | D17: =R_SgasTP(D10,D14,D13*100000) -> 6643.428373 | E17: J/kgK | G17: Entropy | I17: =R_SgasTP(I10,I14,I13*100000) -> 6729.938734 | J17: J/kgK | M17: COP two stage | N17: hE | O17: 245.73 | P17: kJ/kg | S17: hD-hE | T17: =I43-I47 -> 1710.738416 | U17: =O16-O17 -> 1648.47 | W17: -3.777346025
B18: Specific volume | D18: =R_vgasTP(D10,D14,D13*100000) -> 0.9720321789 | E18: m3/kg | G18: Specific volume | I18: =R_vgasTP(I10,I14,I13*100000) -> 1.226958817 | J18: m3/kg | M18: (hD-hE)/(xf(hB-hA)+(hD-hC) | N18: hF | O18: =O17 -> 245.73 | P18: kJ/kg | S18: hF-hG | T18: =I47-I49 -> 27.3257289 | U18: =O17-O19 -> 22.18 | W18: -23.1998598
M19: =(O16-O17)/(M15*(O14-O13)+(O16-O15)) -> 3.3370703 | N19: hG | O19: 223.55 | P19: kJ/kg | S19: hH-hA | T19: =I16-I49 -> 1199.955851 | U19: =O13-O19 -> 1196.25 | W19: -0.3097890372
B20: Condensating temperature | D20: 28 | E20: ˚C | G20: Intermediat temperature | I20: 5 | J20: ˚C | N20: hH | O20: =O19 -> 223.55 | P20: kJ/kg | S20: COP | T20: =I64 -> 3.079574872 | U20: =M19 -> 3.3370703 | W20: =(U20-T20)/U20*100 -> 7.716212275
B21: Condensating pressure | D21: =r_psatgasT(D10,D20)/100000 -> 10.98753083 | E21: bar | G21: Intermediat pressure | I21: =r_psatgasT(I10,I20)/100000 -> 5.156470179 | J21: bar
B22: Pressure ration | D22: =D21/D13 -> 9.195682542 | G22: Intermediat pressure ratio | I22: =I21/I13 -> 5.536302953 | N22: mR717 | O22: 0.005 | P22: kg/s
B23: Isentropic efficiency | D23: 0.7 | G23: Isentropic efficiency | I23: 0.7 | N23: xf value | O23: =1-0.019 -> 0.981
O24: Effect of comp | Q24: Temp out of comp
B25: Isentropic entalpy | D25: =R_hgasSP(D10,D17,D21*100000)/1000 -> 1924.437071 | E25: kJ/kg | G25: Isentropic entalpy | I25: =R_hgasSP(I10,I17,I21*100000)/1000 -> 1821.176047 | J25: kJ/kg | N25: 1. | O25: =(O22*O23)*(O14-O13) -> 1.682415 | P25: kW | Q25: 127.12 | R25: ˚C
B26: Real entropy | D26: =D16+(D25-D16)/D23 -> 2068.258323 | E26: kJ/kg | G26: Real entropy | I26: =I16+(I25-I16)/I23 -> 1924.046442 | J26: kJ/kg | N26: 2. | O26: =O22*(O16-O15) -> 0.78005 | P26: kW | Q26: 186.11 | R26: ˚C
B27: Temperature out of compressor | D27: =R_tgasHP(D10,D26*1000,D21*100000) -> 191.1516557 | E27: ˚C | G27: Temperature out of compressor | I27: =R_tgasHP(I10,I26*1000,I21*100000) -> 127.0152002 | J27: ˚C | N27: Tot | O27: =SUM(O25:O26) -> 2.462465 | P27: kW | U27: CoolPack | V27: Log p-h | W27: Kolsaker | X27: Diff CoolPack vs Kolsaker | Y27: Diff log vss kolsaker
B28: Enthalpy on the dewpoint line | D28: =R_hsatgasT(D10,D20)/1000 -> 1647.056907 | E28: kJ/kg | G28: Enthalpy on the dewpoint line | I28: =R_hsatgasT(I10,I20)/1000 -> 1628.913808 | J28: kJ/kg | O28: Effect of gas cooler | T28: Comp 1 | U28: =N39 -> 1.4 | V28: =O25 -> 1.682415 | W28: =I59 -> 1.684793465 | X28: =((W28-U28)/W28)*100 -> 16.90376127 | Y28: =((W28-V28)/W28)*100 -> 0.1411725146
B29: Subcooling of condenser | D29: 18 | E29: ˚C | G29: 2. Compressor | O29: =O22*(O16-O17) -> 8.24235 | P29: kW | T29: Comp2 | U29: =N40 -> 1.3 | V29: =O26 -> 0.78005 | W29: =I60 -> 1.094616612 | X29: =(-(W29-U29)/W29)*100 -> 18.76304327 | Y29: =((W29-V29)/W29)*100 -> 28.73760623
B30: Enthalpy out of the condenser | D30: =R_hsatliqT(D10,D20-D29)/1000 -> 408.5150014 | E30: kJ/kg | G30: Intermediat cooling | I30: 10 | J30: K | O30: COP-comp effect | T30: Cond. | U30: =N38 -> 10.1 | V30: =O29 -> 8.24235 | W30: =I63 -> 8.559401431 | X30: =(-(W30-U30)/W30)*100 -> 17.99890543 | Y30: 3.704130875
G31: Temperature in to compressor | I31: =I27-I30 -> 117.0152002 | J31: ˚C | O31: =O29/O27 -> 3.347194782 | T31: COP | U31: =N41 -> 3.740740741 | V31: =M19 -> 3.3370703 | W31: =I64 -> 3.079574872 | X31: =((U31-W31)/U31)*100 -> 17.67473115 | Y31: =((V31-W31)/V31)*100 -> 7.716212275
B32: Enthalpy in to evaporator | D32: =D30 -> 408.5150014 | E32: kJ/kg | G32: Enthalpy input compressor | I32: =r_hgastp(I10,I31,I21*100000)/1000 -> 1900.476123 | J32: kJ/kg
B33: Cooling capacity | D33: =D35*(D16-D32) -> 5.665627913 | E33: kW | G33: Entropy | I33: =R_SgasTP(I10,I31,I21*100000) -> 6942.532522 | J33: J/kgK
B34: Cooling COP | D34: =D33/D41 -> 2.462096107 | G34: Specific volume | I34: =R_vgasTP(I10,I31,I21*100000) -> 0.3621873824 | J34: m3/kg
B35: Refrigerant fluid mass flow | D35: 0.0048 | E35: kg/s
B36: Volume flow | D36: =D37/3600 -> 0.004875 | E36: m3/s | G36: Condensating temperature | I36: 28 | J36: ˚C
B37: Volume flow | D37: =D39*D38 -> 17.55 | E37: m3/h | G37: Condensating pressure | I37: =r_psatgasT(I10,I36)/100000 -> 10.98753083 | J37: bar | M37: Coolpack effects
B38: Volumetric efficiency | D38: 0.65 | G38: Pressure ration | I38: =I37/I21 -> 2.13082408 | M38: Condenser | N38: 10.1 | O38: kW | P38: Temp out of comp
B39: Cylinder volume | D39: 27 | E39: m3/h | G39: Pressure ration TOTAL | I39: =I37/I13 -> 11.79688765 | M39: Compressor 1 | N39: 1.4 | O39: kW | P39: 122.6 | Q39: ˚C
G40: Isentropic efficiency | I40: 0.7 | M40: Compressor 2 | N40: 1.3 | O40: kW | P40: 201.9 | Q40: ˚C
B41: Compressor effect | D41: =D35*(D26-D16) -> 2.301140032 | E41: kW | M41: COP | N41: =N38/(N39+N40) -> 3.740740741
B42: Over heating heat | D42: =D35*(D26-D28) -> 2.021766798 | E42: kW | G42: Isentropic entalpy | I42: =R_hgasSP(I10,I33,I37*100000)/1000 -> 2053.620229 | J42: kJ/kg | M42: xf value | N42: =1-0.02 -> 0.98
B43: Heating capacity | D43: =D35*(D26-D32) -> 7.966767945 | E43: kW | G43: Real entropy | I43: =I32+(I42-I32)/I40 -> 2119.253417 | J43: kJ/kg
B44: Heating COP | D44: =D43/D41 -> 3.462096107 | G44: Temperature out of compressor | I44: =R_tgasHP(I10,I43*1000,I37*100000) -> 211.4323407 | J44: ˚C
G45: Enthalpy on the dewpoint line | I45: =R_hsatgasT(I10,I36)/1000 -> 1647.056907 | J45: kJ/kg
B46: Log p-h diagram in CoolPack | G46: Subcooling of condenser | I46: 18 | J46: K
B47: h1 | C47: 1426.62 | D47: kJ/kg | G47: Enthalpy out of the condenser | I47: =R_hsatliqT(I10,I36-I46)/1000 -> 408.5150014 | J47: kJ/kg
B48: h2 | C48: 1906.14 | D48: kJ/kg
B49: h3=h4 | C49: 245.73 | D49: kJ/kg | G49: Enthalpy in to evaporator | I49: =R_HsatliqP(I10,I20*100000)/1000 -> 381.1892725 | J49: kJ/kg
B50: COP | C50: =(C48-C49)/(C48-C47) -> 3.46265015 | G50: Moist vapor - xf | I50: =(I32-I47)/(I32-I49) -> 0.9820141082
B51: Output temp of comp | C51: 190.9 | D51: ˚C | G51: Cooling capacity | I51: =I53*(I16-I49) -> 6.003783942 | J51: kW
G52: Cooling COP | I52: =I51/I61 -> 2.160092889
G53: Refrigerant mass flow | I53: =I54/I18 -> 0.005003337361 | J53: kg/s
B54: Coolpack effects | G54: Volume flow | I54: =I55/3600 -> 0.006138888889 | J54: m3/s
B55: Compressor | C55: 2.4 | D55: kW | G55: Volume flow | I55: =I57*I56 -> 22.1 | J55: m3/h
B56: Condenser | C56: 7.9 | D56: kW | G56: Volumetric efficiency | I56: 0.65
B57: COP | C57: =C56/C55 -> 3.291666667 | G57: Cylinder volume | I57: 34 | J57: m3/h
B58: Output temp of comp | C58: 187.3 | D58: ˚C
G59: Compressor effect 1. compressor | I59: =(I53*I50)*(I26-I16) -> 1.684793465 | J59: kW
G60: Compressor effect 2. compressor | I60: =I53*(I43-I32) -> 1.094616612 | J60: kW
G61: Compressor effect TOTAL | I61: =I60+I59 -> 2.779410077 | J61: kW
G62: Over heating heat | I62: =(I53*(I43-I45))+((I53/2)*(I26-I28)) -> 3.100882509 | J62: kW
G63: Heating capacity | I63: =(I53*(I43-I47)) -> 8.559401431 | J63: kW
G64: Heating COP | I64: =I63/I61 -> 3.079574872

Sheet Kolsaker sheet
A5: Refrigerant | C5: R717 | H5: Refrigerant | J5: R717 | P5: Refrigerant | R5: R717
A6: One-stage Compression | H6: Two-stage Compression | P6: Two-stage Compression
A7: Evaporation temperature | C7: -30 | D7: ˚C | H7: Evaporation temperature | J7: -35 | K7: ˚C | P7: Evaporation temperature | R7: -35 | S7: ˚C
A8: Evaporation pressure | C8: =r_psatgasT(C5,C7)/100000 -> 1.194857562 | D8: bar | H8: Evaporation pressure | J8: =r_psatgasT(J5,J7)/100000 -> 0.9313923431 | K8: bar | P8: Evaporation pressure | R8: =r_psatgasT(R5,R7)/100000 -> 0.9313923431 | S8: bar
A9: Temperature in to compressor | C9: =C7+5 -> -25 | D9: ˚C | H9: Temperature in to compressor | J9: =J7+5 -> -30 | K9: ˚C | P9: Temperature in to compressor | R9: =R7+5 -> -30 | S9: ˚C
A10: Enthalpy input compressor | C10: =r_hgastp(C5,C9,C8*100000)/1000 -> 1595.872695 | D10: kJ/kg | H10: 1. Compressor | P10: 1. Compressor
A11: Entropy | C11: =R_SgasTP(C5,C9,C8*100000) -> 6671.873703 | D11: J/kgK | H11: Enthalpy input compressor | J11: =r_hgastp(J5,J9,J8*100000)/1000 -> 1588.041844 | K11: kJ/kg | P11: Enthalpy input compressor | R11: =r_hgastp(R5,R9,R8*100000)/1000 -> 1588.041844 | S11: kJ/kg
A12: Specific volume | C12: =R_vgasTP(C5,C9,C8*100000) -> 0.9856060549 | D12: m3/kg | H12: Entropy | J12: =R_SgasTP(J5,J9,J8*100000) -> 6758.468022 | K12: J/kgK | P12: Entropy | R12: =R_SgasTP(R5,R9,R8*100000) -> 6758.468022 | S12: J/kgK
H13: Specific volume | J13: =R_vgasTP(J5,J9,J8*100000) -> 1.24415519 | K13: m3/kg | P13: Specific volume | R13: =R_vgasTP(R5,R9,R8*100000) -> 1.24415519 | S13: m3/kg
A14: Condensating temperature | C14: 28 | D14: ˚C
A15: Condensating pressure | C15: =r_psatgasT(C5,C14)/100000 -> 10.98753083 | D15: bar | H15: Intermediat temperature | J15: 5 | K15: ˚C | P15: Intermediat temperature | R15: 5 | S15: ˚C
A16: Pressure ration | C16: =C15/C8 -> 9.195682542 | H16: Intermediat pressure | J16: =r_psatgasT(J5,J15)/100000 -> 5.156470179 | K16: bar | P16: Intermediat pressure | R16: =r_psatgasT(R5,R15)/100000 -> 5.156470179 | S16: bar
A17: Isentropic efficiency | C17: 0.7 | H17: Intermediat pressure ratio | J17: =J16/J8 -> 5.536302953 | P17: Intermediat pressure ratio | R17: =R16/R8 -> 5.536302953
H18: Isentropic efficiency | J18: 0.7 | P18: Isentropic efficiency | R18: 0.7
A19: Isentropic entalpy | C19: =R_hgasSP(C5,C11,C15*100000)/1000 -> 1936.061701 | D19: kJ/kg
A20: Real entropy | C20: =C10+(C19-C10)/C17 -> 2081.856989 | D20: kJ/kg | H20: Isentropic entalpy | J20: =R_hgasSP(J5,J12,J16*100000)/1000 -> 1831.404575 | K20: kJ/kg | P20: Isentropic entalpy | R20: =R_hgasSP(R5,R12,R16*100000)/1000 -> 1831.404575 | S20: kJ/kg
A21: Temperature out of compressor | C21: =R_tgasHP(C5,C20*1000,C15*100000) -> 196.5785605 | D21: ˚C | H21: Real entropy | J21: =J11+(J20-J11)/J18 -> 1935.702889 | K21: kJ/kg | P21: Real entropy | R21: =R11+(R20-R11)/R18 -> 1935.702889 | S21: kJ/kg
A22: Enthalpy on the dewpoint line | C22: =R_hsatgasT(C5,C14)/1000 -> 1647.056907 | D22: kJ/kg | H22: Temperature out of compressor | J22: =R_tgasHP(J5,J21*1000,J16*100000) -> 131.9461675 | K22: ˚C | P22: Temperature out of compressor | R22: =R_tgasHP(R5,R21*1000,R16*100000) -> 131.9461675 | S22: ˚C
A23: Subcooling of condenser | C23: 18 | D23: K | H23: Enthalpy on the dewpoint line | J23: =R_hsatgasT(J5,J15)/1000 -> 1628.913808 | K23: kJ/kg | P23: Enthalpy on the dewpoint line | R23: =R_hsatgasT(R5,R15)/1000 -> 1628.913808 | S23: kJ/kg
A24: Enthalpy out of the condenser | C24: =R_hsatliqT(C5,C14-C23)/1000 -> 408.5150014 | D24: kJ/kg | H24: 2. Compressor | P24: 2. Compressor
H25: Intermediat cooling | J25: 10 | K25: K | P25: Intermediat cooling | R25: 10 | S25: K
A26: Enthalpy in to evaporator | C26: =C24 -> 408.5150014 | D26: kJ/kg | H26: Temperature in to compressor | J26: =J22-J25 -> 121.9461675 | K26: ˚C | P26: Temperature in to compressor | R26: =R22-R25 -> 121.9461675 | S26: ˚C
A27: Cooling capacity | C27: =C29*(C10-C26) -> 2.283906721 | D27: kW | H27: Enthalpy input compressor | J27: =r_hgastp(J5,J26,J16*100000)/1000 -> 1912.087783 | K27: kJ/kg | P27: Enthalpy input compressor | R27: =r_hgastp(R5,R26,R16*100000)/1000 -> 1912.087783 | S27: kJ/kg
A28: Cooling COP | C28: =C27/C35 -> 2.443201778 | H28: Entropy | J28: =R_SgasTP(J5,J26,J16*100000) -> 6972.106661 | K28: J/kgK | P28: Entropy | R28: =R_SgasTP(R5,R26,R16*100000) -> 6972.106661 | S28: J/kgK
A29: Refrigerant fluid mass flow | C29: =C30/C12 -> 0.00192352038 | D29: kg/s | H29: Specific volume | J29: =R_vgasTP(J5,J26,J16*100000) -> 0.3670958647 | K29: m3/kg | P29: Specific volume | R29: =R_vgasTP(R5,R26,R16*100000) -> 0.3670958647 | S29: m3/kg
A30: Volume flow | C30: =C31/3600 -> 0.001895833333 | D30: m3/s
A31: Volume flow | C31: =C33*C32 -> 6.825 | D31: m3/h | H31: Condensating temperature | J31: 28 | K31: ˚C | P31: Condensating temperature | R31: 28 | S31: ˚C
A32: Volumetric efficiency | C32: 0.65 | H32: Condensating pressure | J32: =r_psatgasT(J5,J31)/100000 -> 10.98753083 | K32: bar | P32: Condensating pressure | R32: =r_psatgasT(R5,R31)/100000 -> 10.98753083 | S32: bar
A33: Cylinder volume | C33: 10.5 | D33: m3/h | H33: Pressure ration | J33: =J32/J16 -> 2.13082408 | P33: Pressure ration | R33: =R32/R16 -> 2.13082408
H34: Pressure ration TOTAL | J34: =J32/J8 -> 11.79688765 | P34: Pressure ration TOTAL | R34: =R32/R8 -> 11.79688765
A35: Compressor effect | C35: =C29*(C20-C10) -> 0.9348006954 | D35: kW | H35: Isentropic efficiency | J35: 0.7 | P35: Isentropic efficiency | R35: 0.7
A36: Over heating heat | C36: =C29*(C20-C22) -> 0.8363468197 | D36: kW
A37: Heating capacity | C37: =C29*(C20-C26) -> 3.218707417 | D37: kW | H37: Isentropic entalpy | J37: =R_hgasSP(J5,J28,J32*100000)/1000 -> 2067.259006 | K37: kJ/kg | P37: Isentropic entalpy | R37: =R_hgasSP(R5,R28,R32*100000)/1000 -> 2067.259006 | S37: kJ/kg
A38: Heating COP | C38: =C37/C35 -> 3.443201778 | H38: Real entropy | J38: =J27+(J37-J27)/J35 -> 2133.760959 | K38: kJ/kg | P38: Real entropy | R38: =R27+(R37-R27)/R35 -> 2133.760959 | S38: kJ/kg
A39: pluss (+) 2 kW water heating | C39: =(C37+2)/(C35+2) -> 1.778215272 | H39: Temperature out of compressor | J39: =R_tgasHP(J5,J38*1000,J32*100000) -> 217.165561 | K39: ˚C | P39: Temperature out of compressor | R39: =R_tgasHP(R5,R38*1000,R32*100000) -> 217.165561 | S39: ˚C
H40: Enthalpy on the dewpoint line | J40: =R_hsatgasT(J5,J31)/1000 -> 1647.056907 | K40: kJ/kg | P40: Enthalpy on the dewpoint line | R40: =R_hsatgasT(R5,R31)/1000 -> 1647.056907 | S40: kJ/kg
H41: Subcooling of condenser | J41: 18 | K41: K | P41: Subcooling of condenser | R41: 18 | S41: K
H42: Enthalpy out of the condenser | J42: =R_hsatliqT(J5,J31-J41)/1000 -> 408.5150014 | K42: kJ/kg | P42: Enthalpy out of the condenser | R42: =R_hsatliqT(R5,R31-R41)/1000 -> 408.5150014 | S42: kJ/kg
H44: Enthalpy in to evaporator | J44: =R_HsatliqP(J5,J15*100000)/1000 -> 381.1892725 | K44: kJ/kg | P44: Enthalpy in to evaporator | R44: =R_HsatliqP(R5,R15*100000)/1000 -> 381.1892725 | S44: kJ/kg
H45: Moist vapor - xf | J45: =(J27-J42)/(J27-J44) -> 0.9821505288 | P45: Moist vapor - xf | R45: =(R27-R42)/(R27-R44) -> 0.9821505288
H46: Cooling capacity | J46: =J48*(J11-J44) -> 1.622867666 | K46: kW | P46: Cooling capacity | R46: =R48*(R11-R44) -> 1.622867666 | S46: kW
H47: Cooling COP | J47: =J46/J56 -> 2.143120512 | P47: Cooling COP | R47: =R46/R56 -> 2.119761166
H48: Refrigerant mass flow | J48: =J49/(J13+J29) -> 0.001344710782 | K48: kg/s | P48: Refrigerant mass flow | R48: =R49/(R13+R29) -> 0.001344710782 | S48: kg/s
H49: Volume flow | J49: =J50/3600 -> 0.002166666667 | K49: m3/s | P49: Volume flow | R49: =R50/3600 -> 0.002166666667 | S49: m3/s
H50: Volume flow | J50: =J52*J51 -> 7.8 | K50: m3/h | P50: Volume flow | R50: =R52*R51 -> 7.8 | S50: m3/h
H51: Volumetric efficiency | J51: 0.65 | P51: Volumetric efficiency | R51: 0.65
H52: Cylinder volume | J52: 12 | K52: m3/h | P52: Cylinder volume | R52: 12 | S52: m3/h
H54: Compressor effect 1. compressor | J54: =(J48*J45)*(J21-J11) -> 0.4591588644 | K54: kW | P54: Compressor effect 1. compressor | R54: =(R48)*(R21-R11) -> 0.4675035557 | S54: kW
H55: Compressor effect 2. compressor | J55: =J48*(J38-J27) -> 0.2980863098 | K55: kW | P55: Compressor effect 2. compressor | R55: =R48*(R38-R27) -> 0.2980863098 | S55: kW
H56: Compressor effect TOTAL | J56: =J55+J54 -> 0.7572451742 | K56: kW | P56: Compressor effect TOTAL | R56: =R55+R54 -> 0.7655898655 | S56: kW
H57: Over heating heat | J57: =(J48*(J38-J40))+((J48/2)*(J21-J23)) -> 0.8607474782 | K57: kW | P57: Over heating heat | R57: =(R48*(R38-R40))+((R48/2)*(R21-R23)) -> 0.8607474782 | S57: kW
H58: Heating capacity | J58: =(J48*(J38-J42)) -> 2.319956841 | K58: kW | P58: Heating capacity | R58: =(R48*(R38-R42)) -> 2.319956841 | S58: kW
H59: Heating COP | J59: =J58/J56 -> 3.063679928 | P59: Heating COP | R59: =R58/R56 -> 3.03028677
H60: pluss (+) 2 kW water heating | J60: =(J58+2)/(J56+2) -> 1.566765582 | P60: pluss (+) 2 kW water heating | R60: =(R58+2)/(R56+2) -> 1.562038137
